Workbook

Sheet Cover Page
D1: Add company logo
N2: Version 20.6
B8: Add photo
N13: Notes:
N14: This template may require adjustments by individual operators to meet specific reporting requirements as defined in the site Permit(s)
B29: Annual Performance Report 2020
B31: Permit EPR/ZP3937KL
B33: Severnside Energy Recovery Centre
B37: SUEZ Recycling and Recovery UK Ltd
B39: Year: | C39: 2020
B41: Address: | C41: Severn Road, Severnside, South Gloucestershire, BS10 7SP
B43: Tel: | C43: 07970 233762
B45: Email: | C45: richard.watkins@suez.com
B47: Prepared by: | C47: Richard Watkins | F47: Position: | G47: EIR Advisor
B49: Approved by: | C49: Stephen Fisher | F49: Position: | G49: Plant Manager
B51: Version: | C51: 1
B53: Issue Date: | C53: 2021-01-27

Sheet Contents
A1: =+'Cover Page'!$B$29 -> Annual Performance Report 2020 | E1: =+'Cover Page'!$B$33 -> Severnside Energy Recovery Centre
A3: Contents | K3: Notes:
A4: Section | B4: Subject | H4: Page | K4: Section references and Page nos. to be inserted
B5: Facility Information | K5: Sections and Subjects may require adjustment by individual operators to meet specific reporting requirements as defined in the sites Permit(s)
B6: Operational Summary
B7: Operational Data
B8: Performance Form 1
B9: Energy Form 1
B10: Permit Compliance
B11: Improvements
B12: Public Liaison
B13: Residue Quality - Optional
B14: Emissions to Water
B15: Emissions to Air (periodically monitored)
B16: Emissions to Air (continuously monitored)
B17: Hydrogen Chloride emissions
B18: Sulphur Dioxide emissions
B19: Oxides of Nitrogen emissions
B20: Total Organic Carbon emissions
B21: Particulate Matter emissions
B22: Carbon Monoxide emissions
B23: Ammonia emissions
A26: Version Control
A27: Section | B27: Information | H27: Date
A34: Distribution
A35: Copy | B35: Name, Role | H35: No.
A36: 1 | B36: SUEZ Environment & Industrial Risk Team
A37: 2 | B37: SUEZ Site Management Team
A38: 3 | B38: Environment Agency
A44: This report is required under the Industrial Emissions Directive’s Article 55(2) requirements on reporting and public information on waste incineration plants and co-incineration plants, which require the operator to produce an annual report on the functioning and monitoring of the plant and make it available to the public.

Sheet Facility Info
A1: =+'Cover Page'!$B$29 -> Annual Performance Report 2020 | E1: =+'Cover Page'!$B$33 -> Severnside Energy Recovery Centre
A3: Plant Description and Design | K3: Notes:
A5: The installation is an Energy from Waste (EfW) plant which processes up to 467,082 tonnes of residual (non-recyclable) Commercial and Industrial and Municipal waste per annum, leading to a net export of approximately 37 MW of electrical energy to the National Grid. The facility comprises two identical moving grate incinerator combustion lines with a combined capacity of approximately 50 tonne/hr of waste of an approximate 9.8MJ/kg calorific value. The waste is delivered to the site by road, and rail by a dedicated onsite railhead served by two gantry cranes. The plant has two auxiliary burners to support start-up and shutdown on each incineration line, and a stand-by diesel generator to support emergency shutdown in the event of power failure. The incinerator bottom ash (IBA) waste on the site is quenched to control dust fugitive emissions and transferred by covered conveyors to the onsite bottom ash recycling plant. The bottom ash recycling plant uses magnets, eddy current separators and a trommel to recover ferrous metals and non-ferrous metals from the bottom ash. Hazardous air pollution control residues (APCR) from the flue gas treatment plant is collected and removed offsite for treatment. The treatment process involves the removal of contaminants and reuse of the fine ash material as an aggregate replacement in manufactured cement blocks. SNCR (ammonia) is used to reduce emissions of oxides of nitrogen, lime to reduce acid gas emissions and carbon injection for reduction of organics including dioxins and PAH emissions. Bag filters within the flue gas treatment plant remove dust (particulates) from the emissions to air. The treated emissions to air are released through two 118 metre stacks comprising two flues that run the full length of the stack (one for each incineration line). A continuous emissions monitoring system (CEMS) is installed, as required by the permit, to provide continuous analysis of oxides of nitrogen, sulphur dioxide, carbon monoxide, hydrogen chloride, particulates, total organic carbon and ammonia emissions to air from the two stacks. The main emissions to air from the site are the combustion gases (oxides of nitrogen, sulphur dioxide and particulates), along with small quantities of ammonia, nitrous oxide, hydrogen chloride, metals, dioxins and furans, and polyaromatic hydrocarbons. There are no emissions from the process to controlled waters. Water discharge of uncontaminated surface (rain)water is permitted. The Severn Estuary SAC, SSSI, SPA and RAMSAR sites are within 10km of the site, along with the River Wye and Avon Gorge Woodlands. | K5: Include summary of plant design, design capacity, no. of combustion lines, electrical and heat capacity and any other general information that descibes the facility, its location and purpose
A20: Summary of Operational Processes and Procedures
A22: Activity listed in Schedule1 of the EP Regulations S5.1 A1 (b) The incineration of nonhazardous waste in a waste incineration plant with a capacity of 3 tonnes per hour or more. From receipt of commercial, industrial and municipal waste by road and/or rail to storage of gas oil auxiliary fuel, to incineration of waste and removal of ash. The receipt, handling, storage, processing and treatment of incinerator bottom ash only from within the installation. Directly Associated Activities The generation of up to 40 MWe electrical power, with approximately 37 MWe for export to the National Grid, using a steam turbine from energy recovered from the flue gases. From receipt of commercial, industrial and municipal waste by road and/or rail to storage of gas oil auxiliary fuel, to incineration of waste and removal of ash. The receipt, handling, storage, processing and treatment of incinerator bottom ash only from within the installation. Standby diesel generator for providing emergency electrical power to the plant in the event of supply interruption. From receipt of diesel fuel to production of electricity for controlled shutdown of incinerator in the event of power failure at the site. Railhead; operation of designated railhead for the receipt of waste for thermal treatment and the potential dispatch by rail of recycled bottom ash as a secondary aggregate. From receipt of waste to the potential loading of processed IBA, limited within the site boundary. Plant Description Incoming contract waste is delivered to site by rail with each train carrying approximately 1,000 tonnes of waste in 78 containers. Each container is transferred by gantry crane to roll on/off vehicles and taken to the Tipping Hall for unloading into the waste bunker. Third party waste is received by road, checked in, weighed and delivered into the reception hall by ro/ro’s, refuse collection vehicles and bulk transport vehicles. RECEPTION HALL A large reception hall allows for vehicles delivering waste to the site to manoeuvre and tip waste safely. The tipping hall is constructed above ground level as part of the sites flood protection strategy. HGV access to and egress from the Tipping Hall is via ramps on the south and north sides of the building. Air needed for combustion is drawn into the furnace from here (above the waste bunker) so that negative pressure is maintained in order to avoid odour and dust escaping the building. The tipping hall also includes an automatic dust and odour suppression system. WASTE BUNKER Waste vehicles reverse to a wheel stop and tip their loads into a large concrete bunker. The waste cranes operate over the waste bunker automatically to mix the waste to improve the homogeneity of the incinerator feedstock and feed the waste hoppers for each incineration line. Manual control by crane operators is carried out as and when required. Inspection of wastes received is carried out by the Day Operations team to look for unsuitable material and non-permitted wastes to be removed. CONTROL ROOM The plant’s control room contains the Distributed Control System (DCS) which centralises the operation of the plant, and all equipment, including the grab cranes used to mix and load waste into the hoppers that feed the incineration lines. All on-site functions are monitored automatically and manually. Its systems verify in real time that equipment is functioning properly, continuously monitor the combustion processes, flue gases, and maximise the efficiency of the entire EfW process. GRATE AND BOILER Waste is lifted into the feed hoppers by the waste cranes. From here it is dropped into the furnace feed chute and then is introduced onto the grate system by hydraulic ram feeders for incineration. Auxiliary burners are used at start up and shut down, and can be used to help keep the furnace temperature above 850°C if required. The plant has two auxiliary burners per incineration line. The thermal energy released from the incineration of waste is used to convert water to super-heated steam through the boiler and 5 pass superheater. At high pressure, this steam drives a turbine to generate electricity. ELECTRICITY GENERATION The turbine drives a step down gearbox, which in turn drives a generator. Electricity is generated at 11kv, with electricity production of 304,000 MWh/annum (based on 38MW and 8,000 operating hours) and exporting approximately 273,600 MWh/annum to the national grid. INCINERATOR BOTTOM ASH (IBA) Ash left on the grate after incineration falls through the grate riddlings or off the end of the grate, is combined with boiler ash produced in the superheater and passes into the bottom ash extractor. The bottom ash extractor contains water to quench the ash and to provide an air seal for the furnace. The material is removed from the bottom ash extractor by a drag conveyor passing the material onto the vibrating fingers for removal of the oversize metal content. The oversize metal drops into a skip for collection and the remaining IBA material is dropped onto a conveyor for transport to the on site IBA recycling plant. Up to 100,000 tonnes per annum of IBA is produced and then processed on site by the removal of ferrous and non-ferrous metal, stabilised and separated into fraction sizes prior to the export from site of the recovered aggregates and metals for re-use. AIR-COOLED CONDENSERS After exiting the turbine, the steam is cooled and condensed back into water through air cooled condensers. This recovered water is collected in the condensate tank, treated and returned to the feedwater system to supply the boiler drum and to produce more steam, thus reducing consumption of mains water. EMISSION CONTROL The flue gases from the incineration of waste are subject to a rigorous cleaning process involving ammonia for removal of Nitrogen Oxides (NOx) by selective non-catalytic reduction (SNCR). A DyNor (Dynamic NOx Reduction system) is used to optimise NOx reduction and reduce ammonia slip by altering the ammonia injection point into the furnace, dependent on the temperature profile, so the injection takes place where the SNCR reaction will be most effective. Lime and powdered activated carbon is injected into the reactor where the lime removes acidic gases such as sulphur dioxide (SO2) and hydrogen chloride (HCL), and the activated carbon removes heavy metals, dioxins and furans. AIR POLLUTION CONTROL RESIDUE (APCR) The cleaned flue gases pass from the reactor through fine-fabric bag filters to remove solid particulates (dust). The bag filters become coated with lime and carbon and provides a further reaction surface increasing the effectiveness of the carbon and lime. When the pressure differential between the inside of the fabric filters becomes too great, a jet of compressed air is used to remove some of the reagents and ash caking the outside of the bag filters. Some of this material is recirculated back into the reactor where atomised water jets reactive the reagents for further use in the reactor. The remaining APCR collected from the bag filter housing contains ash particles from the incineration process, spent lime used in the flue gas treatment, salts and carbon dust. It is transported to and stored in two sealed silo’s until it is tankered away for recovery. CONTINUOUS EMISSIONS MONITORING SYSTEM (CEMS) The flue gases are drawn through the flue gas treatment system by large induction fans which then vent and discharge the treated flue gases to atmosphere via the stacks. A continuous emissions monitoring system is installed on each stack to monitor these emissions. The data is used to make any necessary adjustment to reagent dosing to ensure compliance with permit Emission Limit Values (ELV’s). This data is relayed automatically to the control room and is under close observation by the Operations Team. The CEMS is subject to QAL3 calibration tests (zero and span checks) performed monthly by the maintenance team, and an external contractor carries out annual servicing, calibration and emission testing as required by the permit. | K22: Include summary of key processes and procedures such as (but not limited to); waste reception, control rooms, grate, bed and bolier, energy & heat generation, cooling systems, residue management, emission controls, health and safety systems, maintenance

Sheet Operational Data
A1: =+'Cover Page'!$B$29 -> Annual Performance Report 2020 | E1: =+'Cover Page'!$B$33 -> Severnside Energy Recovery Centre
A3: Operational Data | K3: Notes:
A4: Plant Size | B4: 467000 | D4: tonnes pa | E4: 131 | F4: MWth | G4: 36 | H4: MWe | K4: * - RDF to include SRF
A5: No. of combustion lines | B5: 2 | D5: No. of Turbines: | F5: 1 | K5: ** - CHP plants only
K6: 2020 updates include; heat in MWh, water in Litres, NCV in MJ/kg
A7: Waste types received | B7: Unit | C7: Q1 | D7: Q2 | E7: Q3 | F7: Q4 | G7: Year Total | H7: %
A8: Household / Local Authority | B8: tonnes | C8: 75408 | D8: 75618 | E8: 79559 | F8: 80897 | G8: =SUM(C8:F8) -> 311482 | H8: =IF(G8>0,G8/$G$18,"-") -> 0.7468768433 | K8: Availabiity Definition: 'the availability of a line is to be calculated by the number of hours the line reported Continuously Monitored emission levels to the Regulator through the calendar year divided by the total number of hours in that year. The overall plant availability is calculated as the Mean of all lines in the plant. For clarity this includes periods of Other Than Normal Operating Conditions (OTNOC) and abnormal operation.' Rationale: The primary function of an Energy from Waste facility is the disposal of waste. It follows therefore that the availability of a plant is determined by the period of time a facility spends undertaking this activity.
A9: Commercial & Industrial | C9: 21122 | D9: 27311 | E9: 25496 | F9: 31635 | G9: =SUM(C9:F9) -> 105564 | H9: 0.2531231567
A10: Hazardous | G10: 0 | H10: -
A11: Clinical | G11: 0 | H11: -
A12: Waste wood (biomass) | G12: 0 | H12: -
A13: Refuse Derived Fuel * - H'hold/LA | G13: =SUM(C13:F13) -> 0 | H13: -
A14: Refuse Derived Fuel * - C&I | G14: 0 | H14: -
A15: Other [Please specify] | G15: 0 | H15: -
A16: Other [Please specify]
A17: Other [Please specify]
A18: Total waste received | C18: =SUM(C8:C17) -> 96530 | D18: =SUM(D8:D17) -> 102929 | E18: =SUM(E8:E17) -> 105055 | F18: =SUM(F8:F17) -> 112532 | G18: =SUM(G8:G17) -> 417046 | H18: 1
A19: Rejected Waste | G19: =SUM(C19:F19) -> 0 | H19: =IF(G19>0,G19/$G$18,"-") -> -
A20: Unprocessed waste transferred out | E20: 422 | F20: 6 | G20: =SUM(C20:F20) -> 428 | H20: =IF(G20>0,G20/$G$18,"-") -> 0.001026265688
A21: Total waste combusted | C21: 92530 | D21: 96926 | E21: 104049 | F21: 117531 | G21: =SUM(C21:F21) -> 411036 | H21: =IF(G21>0,G21/($G$18-G20),"-") -> 0.9866016351
A23: Energy Useage / Export | B23: Unit | C23: Q1 | D23: Q2 | E23: Q3 | F23: Q4 | G23: Year Total | H23: KWh/te
A24: Power Generated | B24: MWh | C24: 71404 | D24: 73885 | E24: 79647 | F24: 82940 | G24: =SUM(C24:F24) -> 307876 | H24: =IF(G24>0,G24*1000/$G$21,"-") -> 749.0244164
A25: Power Exported | C25: 65172 | D25: 66929 | E25: 72879 | F25: 75979 | G25: =SUM(C25:F25) -> 280959 | H25: =IF(G25>0,G25*1000/$G$21,"-") -> 683.5386681
A26: Power Used on site | C26: =(C24-C25)+C27 -> 6322 | D26: =(D24-D25)+D27 -> 6999 | E26: =(E24-E25)+E27 -> 6770 | F26: =(F24-F25)+F27 -> 6989 | G26: =SUM(C26:F26) -> 27080 | H26: =IF(G26>0,G26*1000/$G$21,"-") -> 65.88230715
A27: Power Imported | C27: 90 | D27: 43 | E27: 2 | F27: 28 | G27: 163 | H27: =IF(G27>0,G27*1000/$G$21,"-") -> 0.3965589389
A28: Parasitic Load | B28: % | C28: =IF(C24>0,1-C25/(C24+C27),"-") -> 0.08842700087 | D28: =IF(D24>0,1-D25/(D24+D27),"-") -> 0.09467319554 | E28: =IF(E24>0,1-E25/(E24+E27),"-") -> 0.08499792841 | F28: =IF(F24>0,1-F25/(F24+F27),"-") -> 0.08423729631 | G28: =IF(G24>0,1-G25/(G24+G27),"-") -> 0.08791094634
A29: Thermal Energy Produced ** | B29: MWh | G29: =SUM(C29:F29) -> 0 | H29: =IF(G29>0,G29*1000/$G$21,"-") -> -
A30: Thermal Energy Exported ** | G30: 0 | H30: =IF(G30>0,G30*1000/$G$21,"-") -> -
A31: R1 value | C31: 0.89 | G31: Operational
A33: Waste Disposal & Recovery | B33: Unit | C33: Q1 | D33: Q2 | E33: Q3 | F33: Q4 | G33: Year Total | H33: % inputs
A34: APC Residues - produced | B34: tonnes | C34: 2524 | D34: 2416 | E34: 2546 | F34: 2774 | G34: =SUM(C34:F34) -> 10260 | H34: =IF(G34>0,G34/$G$21,"-") -> 0.02496131726
A35: IBA - produced | C35: 16730.6 | D35: 11977.8 | E35: 17821.9 | F35: 21238 | G35: 67768.3 | H35: =IF(G35>0,G35/$G$21,"-") -> 0.1648719334
A36: Metals recycling | C36: 2904 | D36: 3118 | E36: 3320 | F36: 3493 | G36: =SUM(C36:F36) -> 12835 | H36: 0.03122597534
A37: Other | C37: 0 | D37: 0 | E37: 0 | F37: 0 | G37: =SUM(C37:F37) -> 0 | H37: -
A38: Other | C38: 0 | D38: 0 | E38: 0 | F38: 0 | G38: 0 | H38: -
A39: Other | C39: 0 | D39: 0 | E39: 0 | F39: 0 | G39: 0 | H39: -
A41: Raw Material Usage | B41: Unit | C41: Q1 | D41: Q2 | E41: Q3 | F41: Q4 | G41: Year Total | H41: kg or Ltr /te
A42: Mains Water | B42: ltrs | C42: 12176000 | D42: 13861000 | E42: 12571000 | F42: 12852000 | G42: =SUM(C42:F42) -> 51460000 | H42: =IF(G42>0,G42/$G$21,"-") -> 125.1958466
A43: Other Water | B43: ltrs | G43: 0 | H43: =IF(G43>0,G43/$G$21,"-") -> -
A44: Ammonia | B44: kgs | C44: 131900 | D44: 155180 | E44: 173660 | F44: 164901 | G44: 625641 | H44: 1.522107553
A45: Urea | B45: kgs | G45: =SUM(C45:F45) -> 0 | H45: -
A46: Activated Carbon | B46: kgs | C46: 13445 | D46: 13894 | E46: 14758 | F46: 14869 | G46: 56966 | H46: 0.1385912669
A47: Lime / hydrated lime | B47: kgs | C47: 760623 | D47: 858542 | E47: 937882 | F47: 862966 | G47: 3420013 | H47: 8.320470713
A48: Fuel oil | B48: ltrs | C48: 206171 | D48: 274682 | E48: 109609 | F48: 148155 | G48: 738617 | H48: 1.796964256
A49: Gas | B49: cf | C49: 0 | D49: 0 | E49: 0 | F49: 0 | G49: 0
A50: Other | C50: 0 | D50: 0 | E50: 0 | F50: 0 | G50: 0
A52: Summary | B52: Line/Unit | C52: Q1 | D52: Q2 | E52: Q3 | F52: Q4 | G52: Year Total | J52: Hrs in year
A53: Availability of waste combustion by line, hrs | B53: 1 | C53: 1902 | D53: 2124 | E53: 1977 | F53: 2168 | G53: =SUM(C53:F53) -> 8171 | H53: =(G53/J53) -> 0.9327625571 | J53: 8760
B54: 2 | C54: 1931 | D54: 1879 | E54: 1458 | F54: 2140 | G54: 7408 | H54: =(G54/J53) -> 0.8456621005
B55: 3 | G55: 0 | H55: x %
B56: 4 | G56: 0 | H56: x %
B57: 5 | G57: =SUM(C57:F57) -> 0 | H57: x %
A58: Overall Availability, mean avg. of all lines, hrs | G58: =AVERAGE(G53:G54) -> 7789.5 | H58: =(G58/J53) -> 0.8892123288
A59: Hours of turbine operations, hrs | B59: 1 | C59: 2137 | D59: 2166 | E59: 2206 | F59: 2197 | G59: 8706 | H59: =(G59/J53) -> 0.9938356164
A60: Hours of turbine operations, hrs | B60: 2 | G60: 0 | H60: x %
A61: Hours of heat / steam export | G61: 0 | H61: =IF(B61>0,G60/J53,"n/a") -> n/a
A62: Net Calorific Value of waste | B62: MJ/kg | C62: 9.415253497 | D62: 9.413797916 | E62: 9.312961606 | F62: 8.574136555 | G62: =AVERAGE(C62:F62) -> 9.179037394 | H62: -
A63: Abnormal Events | B63: qty. | C63: 1 | D63: 1 | E63: 1 | F63: 2 | G63: 5 | H63: =IF(G63>0,"yes","no") -> yes
A64: Abnormal operation | B64: hours | C64: 0.5 | D64: 0.5 | E64: 0.5 | F64: 3 | G64: 4.5 | H64: =+(G64)/J53 -> 0.0005136986301
A65: Permit Breaches | B65: qty. | G65: 0 | H65: =IF(G65>0,"yes","no") -> no

Sheet Operational Summary
A1: =+'Cover Page'!$B$29 -> Annual Performance Report 2020 | E1: =+'Cover Page'!$B$33 -> Severnside Energy Recovery Centre
A3: Summary of Plant Operations and Maintenance during the reporting year | K3: Notes:
A5: General Overview Due to unforeseen Covid-19 circumstances the planned Major Outage due in July 2020 has been moved to 2021. In order to carry out essential maintenance and inspections, each line underwent a Minor Outage to last 9 days in duration per line. Line 2 was carried out at the beginning of June, then with a short break between them, Line 1 commenced in July. Line 2 - Stopped waste feeding at midnight Saturday 1 June 2020* and resumed waste feeding on Sunday 7 June 2020 (7 days) *Site decision to come off waste Sat Midnight and not the planned Fri Midnight. Line 1 - Brought off waste midnight Saturday 4 July 2020 and back on waste feeding on Monday 13 July 2020 (9 days) Major Planned Tasks conducted: 1. Refractory Inspection and essential repairs as required 2. Grate and Ram Feeder inspections and essential repairs as required 3. L1 & L2 ID Fan replacement Motor & Electrical mods 4. L2 Bottom Ash Extractor - replacement chain – HZI 5. Grate Drop off plate’s repairs. We also have a detailed planned maintenance program, we can also share this on request. This is part of our normal maintenance operations. An 18 day major shutdown is scheduled to start on the 1 March 2021, with both lines being off at the same time. The facility has had very good availability in 2020 with the only issue being the bottom ash chains that have now both been replaced. | K5: Include summary of key operational and/or mainteanance activity undertaken in the year, such as any major component upgrades and/or replacements
A29: Summary of Residue Handling for the reporting year
A31: The bottom ash chains have been problematic, however both have been changed in 2020. The bag filters have been cleaned on line and have been working well. We have had some filter bags fail and these have been sent off site for quality checks. The bottom ash belts have been changed, this is however normal proactive maintenance. All other aspects of the residue handling have performed well. All IBA produced by the process is treated by the onsite bottom ash recycling plant operated by Blue Phoenix. All APCR produced on site is transported to a treatment facility where the ash is recovered and used to produce cement blocks. | K31: Include in here a summary of residue handling regimes and destinations

Sheet Perf. Form 1
A1: =+'Cover Page'!C39 -> 2020 | B1: Annual Reporting Performance Form 1
A3: =+'Cover Page'!B31 -> Permit EPR/ZP3937KL | F3: Operator: | G3: SUEZ Recycling and Recycling UK Ltd
A4: Facility: | B4: =+'Cover Page'!B33:I33 -> Severnside Energy Recovery Centre | F4: Form: | G4: Performance 1
A6: Reporting Period from: | D6: 2020-01-01 | F6: to: | G6: 2020-12-31
A8: =+A1 -> 2020 | B8: Annual Reporting of Waste Disposal and Recovery
A9: Waste Description | C9: Disposal Route(s) | E9: Disposal Tonnes | G9: Recovery Tonnes | I9: % / tonne of waste incinerated
A10: 1) Hazardous Wastes
A11: APC Residues | C11: D05/R05 | E11: 190.5 | G11: 10094.9 | I11: =IF((E11+G11)>0,(E11+G11)/'Operational Data'!$G$21, "-") -> 0.02502311233
A12: IBA | I12: =IF((E12+G12)>0,(E12+G12)/'Operational Data'!$G$21, "-") -> -
I13: =IF((E13+G13)>0,(E13+G13)/'Operational Data'!$G$21, "-") -> -
I14: =IF((E14+G14)>0,(E14+G14)/'Operational Data'!$G$21, "-") -> -
A15: Total Hazardous Waste | E15: =SUM(E11:F14) -> 190.5 | G15: =SUM(G11:H14) -> 10094.9 | I15: =IF((E15+G15)>0,(E15+G15)/'Operational Data'!$G$21, "-") -> 0.02502311233
A17: 2) Non-Hazardous Wastes
A18: IBA | C18: R05 | G18: 67768.6 | I18: =IF((E18+G18)>0,(E18+G18)/'Operational Data'!$G$21, "-") -> 0.1648726632
A19: Ferrous Metal | C19: R04 | G19: 8349.6 | I19: =IF((E19+G19)>0,(E19+G19)/'Operational Data'!$G$21, "-") -> 0.02031354918
A20: Process Water | C20: D08 | E20: 391.64 | G20: 0 | I20: =IF((E20+G20)>0,(E20+G20)/'Operational Data'!$G$21, "-") -> 0.0009528119192
A21: Non-ferrous Metal | C21: R04 | G21: 4486.3 | I21: =IF((E21+G21)>0,(E21+G21)/'Operational Data'!$G$21, "-") -> 0.01091461575
A22: General | C22: R05 | G22: 4.22 | I22: =IF((E22+G22)>0,(E22+G22)/'Operational Data'!$G$21, "-") -> 1.026674063e-05
A23: Total Non-Hazardous Waste | E23: =SUM(E18:F22) -> 391.64 | G23: =SUM(G18:H22) -> 80608.72 | I23: =IF((E23+G23)>0,(E23+G23)/'Operational Data'!$G$21, "-") -> 0.1970639068
A24: TOTAL WASTE | E24: =+E23+E15 -> 582.14 | G24: =+G23+G15 -> 90703.62 | I24: =IF((E24+G24)>0,(E24+G24)/'Operational Data'!$G$21, "-") -> 0.2220870191
A26: Operator’s comments :
A31: =+A1 -> 2020 | B31: Annual Reporting of Water and Other Raw Material Usage
A32: Raw Material | E32: Usage | G32: Unit | H32: Specific Useage | J32: Unit
A33: Mains Water | E33: =+'Operational Data'!G42 -> 51460000 | G33: m3 | H33: =IF(E33>0,E33/'Operational Data'!$G$21,"-") -> 125.1958466 | J33: m3/te
A34: Total Water | E34: =+'Operational Data'!G43+'Operational Data'!G42 -> 51460000 | G34: m3 | H34: =IF(E34>0,E34/'Operational Data'!$G$21,"-") -> 125.1958466 | J34: m3/te
A35: Urea / Ammonia | E35: =+'Operational Data'!G44 -> 625641 | G35: kg | H35: =IF(E35>0,E35/'Operational Data'!$G$21,"-") -> 1.522107553 | J35: kg/te
A36: Activated Carbon | E36: =+'Operational Data'!G46 -> 56966 | G36: kg | H36: =IF(E36>0,E36/'Operational Data'!$G$21,"-") -> 0.1385912669 | J36: kg/te
A37: Lime / hydrated lime / Sodium Bicarb. | E37: =+'Operational Data'!G47 -> 3420013 | G37: kg | H37: =IF(E37>0,E37/'Operational Data'!$G$21,"-") -> 8.320470713 | J37: kg/te
A39: Operator’s comments :
A43: =+A31 -> 2020 | B43: Annual Reporting of other performance indicators
A44: Parameter | C44: Results by Line
C45: A1 | D45: A2 | E45: A3 | F45: A4 | G45: A5 | I45: Turbine 1 | J45: Turbine 2
A46: Operating hours for the year, hours | C46: 8171 | D46: 7408 | I46: 8706
A47: Number of periods of abnormal operation, qty. | C47: 3 | D47: 3 | I47: 0
A48: Cumulative hours of abnormal operation for this year, hours | C48: 2.5 | D48: 2.5 | I48: 0
A50: Operator’s comments :
A54: Signed: | G54: Date: | H54: 2021-01-27

Sheet Energy Form 1
A1: =+'Cover Page'!C39 -> 2020 | B1: Annual Reporting of Energy Usage/Export
A3: =+'Cover Page'!B31 -> Permit EPR/ZP3937KL | F3: Operator: | G3: SUEZ Recycling and Recycling UK Ltd
A5: Facility: | B5: =+'Cover Page'!B33:I33 -> Severnside Energy Recovery Centre | F5: Form: | G5: Energy 1
A7: Reporting Period from: | D7: =+'Perf. Form 1'!D6:E6 -> 2020-01-01 | F7: to: | G7: =+'Perf. Form 1'!G6:H6 -> 2020-12-31
A9: Energy Source | D9: Energy Usage | F9: Unit | G9: Specific Useage (KWh/tonne incinerated
A10: Electricity Produced | D10: =+'Operational Data'!G24 -> 307876 | F10: MWh | G10: =+'Operational Data'!H24 -> 749.0244164
A11: Electricity Imported | D11: =+'Operational Data'!G27 -> 163 | F11: MWh | G11: =+'Operational Data'!H27 -> 0.3965589389
A12: Electricity Exported | D12: =+'Operational Data'!G25 -> 280959 | F12: MWh | G12: =+'Operational Data'!H25 -> 683.5386681
A13: Gas Oil | D13: =('Operational Data'!G48/1000)*0.845 -> 624.131365 | F13: tonnes
A14: Steam/hot water exported | D14: =+'Operational Data'!G30 -> 0 | F14: GWh | G14: =+'Operational Data'!H30 -> -
A18: Operator’s comments :
A29: Signed: | G29: Date: | H29: 2021-01-27

Sheet Permit Compliance
A1: =+'Cover Page'!$B$29 -> Annual Performance Report 2020 | E1: =+'Cover Page'!$B$33 -> Severnside Energy Recovery Centre
A3: Summary of Permit Compliance
A5: Compliance with permit limits for continuously monitored pollutants
A7: The plant met its emission limits as shown in the table below:
A8: Substance | C8: Percentage time compliant during operation | L8: Notes:
C9: Half-hourly limit | F9: Daily limit | L9: Report to 2 decimal places, i.e. xx.xx% Please provide a brief summary of each notification or non-compliance in the table (rather than just referring to notifications that were sent to the Regulator).
A10: Particulates | C10: 1 | F10: 1
A11: Oxides of nitrogen | C11: 1 | F11: 1
A12: Sulphur dioxide | C12: 1 | F12: 1
A13: Carbon monoxide | C13: 100.00% (95% of 10-min averages) | F13: 1
A14: Total organic carbon | C14: 1 | F14: 1
A15: Hydrogen chloride | C15: 1 | F15: 1
A16: Ammonia | C16: N/A | F16: 1
A19: Summary of any notifications or non-compliances under the permit
A20: Date | B20: Summary of notification or non-compliance [including Line/Reference] | E20: Reason | H20: Measures taken to prevent reoccurrence
A21: 2020-04-01 | B21: Abnormal Operation - particulates on Line 1 | E21: Failed chamber isolation | H21: Cleaning/Maintenance
A22: 2020-04-03 | B22: Abnormal Operation - particulates on Line 1 | E22: Failed bag filter | H22: Failed filter replaced
A23: 2020-07-14 | B23: Abnormal Operation - particulates on Line 2 | E23: Failed chamber isolation | H23: Cleaning/Maintenance
A24: 2020-11-21 | B24: Abnormal Operation - particulates on Line 1 | E24: Loose dust in chamber lid | H24: Cleaning
A25: 2020-12-28 | B25: Abnormal Operation - loss of VOC CEMs L1&L2 | E25: Failed gas releif valve | H25: Releif valve repaired
A27: Summary of any complaints received and actions to taken to resolve them.
A28: Date | B28: Summary of complaint [including Line/Reference] | E28: Reason * | H28: Measures taken to prevent reoccurrence
A29: 2020-04-21 | B29: Amenity complaint - flies in Severn Beach (11 complaints) | E29: Not from the site- not substantiated by the EA | H29: EA inspection confirmed no flies on site
A30: 2020-08-07 | B30: Amenity complaint - flies in Severn Beach (1 complaint) | E30: Not from the site- not substantiated by the EA | H30: None required, proactive controls already in place
A31: 2020-10-14 | B31: Amenity complaint - 11 complaints re noise from Severn Beach & Pilning residents. | E31: Potential source from FGT ID fans - not substantiated by the EA | H31: Action Plan agreed with South Glos. Council Environmental Protection officer
A32: 2020-11-09 | B32: Amenity complaint - noise x 2
A33: 2020-11-10 | B33: Amenity complaint - noise x 2
A34: 2020-11-14 | B34: Amenity complaint - noise x 2
A35: 2020-11-17 | B35: Amenity complaint - noise x 3
A36: 2020-11-24 | B36: Amenity complaint - noise x 1
A37: 2020-12-15 | B37: Amenity complaint - noise x 1
A38: 2020-12-19 | B38: Amenity complaint - noise x 1
E39: * including whether substantiated by the operator or the EA

Sheet Improvements
A1: =+'Cover Page'!$B$29 -> Annual Performance Report 2020 | E1: =+'Cover Page'!$B$33 -> Severnside Energy Recovery Centre
A3: Summary of Plant Improvements
A5: Summary of any efficiency improvements that have been completed within the year.
A6: Changes to EfW emisison limits to be implemented by the EA stem from a review of the Best Available Techniques (BAT) Reference Document (BREF) for Waste Incineration. The site did conduct Some NOx trials to assess performance against the new limit, and we have a presentation on the results, this is being shared with the Environment Agency separately.
A16: Summary of any permit improvement conditions that have been completed within the year and the resulting environmental benefits.
A17: N/A
A27: Summary of any changes to the plant or operating techniques which required a variation to the permit and a summary of the resulting environmental impact.
A28: A permit variation was issued to SUEZ by the Environment Agency on the 17 Match 2020. The operator led application was to request an annual capacity increase. An air quality assessment was undertaken to demonstrate that the change would have no advesre environmental effect. The permit variation increased the annual waste acceptance limit from 400,000 tonnes to 500,000 tonnes and increased the annual waste treatment capacity from 400,000 tonnes to 467,082 tonnes.
A38: Summary of any other improvements made to the plant or planned to be made and a summary of the resulting environmental benefits.
A39: The site is looking at modifications to the Induced Draft air fan duct work. This is intended to reduce some of the low frequency noise being emitted from the fans during oepration. The work is planned for January 2021.

Sheet Public Liasion
A1: =+'Cover Page'!$B$29 -> Annual Performance Report 2020 | E1: =+'Cover Page'!$B$33 -> Severnside Energy Recovery Centre
A3: Details of Public & Stakeholder Liasion
A5: Summary of events held during the reporting year.
A6: Date | C6: Description
A7: Monthly | C7: We hold monthly meeting with the Stakeholders the munities of these meeting can be produced on request
A9: 15th October | C9: Meeting with Local parish councillor
A11: 13th Febuary | C11: Meeting with South Glos Enviromental Officer
A16: List of events planned for next year
A17: Date | C17: Description
A18: Monthly | C18: Stakeholder meetings
A20: August | C20: Planned openday, will have to review depends on Covid-19
A29: If you wish to be involved in the public liaison programme, please contact Stephen Fisher 07870253011_________________

Sheet Residue Quality
A1: =+'Cover Page'!$B$29 -> Annual Performance Report 2020 | E1: =+'Cover Page'!$B$33 -> Severnside Energy Recovery Centre
A3: Residue Quality Monitoring Requirements
A5: Summary of monitoring undertaken and compliance
A6: The samples for the quarterly IBA analysis were undertaken on the 10/02/2020, the 20/05/2020, the 11/09/2020 and the 03/12/2020.
A8: There were no issues identified by the analysis and all results for TOC were below the permit limit. LOI analysis is not required as TOC ananlysis is provided.
A13: Commentary on any specific events
A14: Date & Event | C14: Description
A27: Residue Quality Monitoring Results
A28: Parameter (unit) | C28: Limit | D28: Normal Operation
D29: Bottom ash | F29: APC Residues
A30: Loss on Ignition (average %) | C30: <5% | D30: N/A
A31: Total Organic Carbon (average %) | C31: <3% | D31: 0.805
A32: No. of Assessments Undertaken | C32: --- | D32: 4 | F32: 4
A33: No. of Hazardous Results | C33: --- | D33: 0
A35: Comments :

Sheet Water
A1: =+'Cover Page'!$B$29 -> Annual Performance Report 2020 | E1: =+'Cover Page'!$B$33 -> Severnside Energy Recovery Centre
A3: Emissions to Water
A5: Summary of monitoring undertaken and compliance
A6: W1 is the emission point from the Surface Water Management System to the Red Rhine via the swale. No discharge was observed from this emission point during the reporting period.
A8: W2 is the emission point from the railhead drainage system to the Red Rhine. No discharge was observed from this emission point during the reporting period.
A10: W3 is the emission point for overflow from the clean rainwater and firewater tanks to the Red Rhine. No discharge from this emission point was observed during the reporting period.
A13: Commentary on any specific events
A14: Date & Event | C14: Description
A15: 2020-09-01 | C15: Penstock valve from Pond 1 to the underground water attenuation tank closed to prevent uneccessary recirculation of surface water.
A22: Emissions to Water / Sewer
A23: Parameter | D23: Monitoring Frequency | G23: Limit | H23: Target | I23: Max. | J23: Average
A24: Suspended solids | D24: weekly (W1) monthly (W2) | G24: 30 mg/l | I24: n/a | J24: n/a
A25: Oil | D25: weekly (W1) monthly (W2) | G25: 5 mg/l | I25: n/a | J25: n/a
A26: Oil | D26: weekly (W1) monthly (W2) | G26: No visible oil | I26: n/a | J26: n/a

Sheet Air (periodic)
A1: =+'Cover Page'!$B$29 -> Annual Performance Report 2020 | E1: =+'Cover Page'!$B$33 -> Severnside Energy Recovery Centre
A3: Emissions to Air (periodically monitored)
A5: Summary of monitoring undertaken, standards used and compliance | M5: Notes:
A6: The periodic emissions testing is carried out bi-annually in accordance with the requirements of the Permit by Element Materials Technology. The scheduled emissions testing visits were carried out during February and August 2020. Due to equipment failure Element had to undertake a further visit during April to complete the required emissions testing for the Q1/Q2 period. | M6: Template may require adjustment for any bespoke monitoring requirements of permit.
A9: Results of emissions to air that are periodically monitored
A10: Substance | C10: Ref. Period | D10: Emission Limit Value | F10: Average | M10: User to add additional tables as necessary, depending on whether quarterly or bi-annual reporting is required for the compliance year
F11: A1 | G11: A2 | H11: A3 | I11: A4 | J11: A5
A12: Hydrogen fluoride | C12: 1 hr | D12: 2 mg/m3 | F12: 0.0295 | G12: 0.036
A13: Cd and Th and their compounds | C13: 6-8hrs | D13: 0.05 mg/m3 | F13: 0.0034 | G13: 0.0044
A14: Hg and its compounds | C14: 6-8hrs | D14: 0.05 mg/m3 | F14: 0.0009 | G14: 0.00083
A15: Sb, As, Pb, Cr, Co, Cu, Mn, Ni, V and their compounds | C15: 6-8hrs | D15: 0.5 mg/m3 | F15: 0.07295 | G15: 0.0395
A16: Dioxins & Furans (I-TEQ) | C16: 6-8hrs | D16: 0.1 ng/m3 | F16: 0.00155 | G16: 0.00415
A17: PCBs (WHO-TEQ Humans / Mammals) | C17: 6-8hrs | D17: None set ng/m3 | F17: 0.0002975 | G17: 0.001342
A18: PCBs (WHO-TEQ Fish) | C18: 6-8hrs | D18: None set ng/m3 | F18: 1.7e-05 | G18: 9e-06
A19: PCBs (WHO-TEQ Birds) | C19: 6-8hrs | D19: None set ng/m3 | F19: 0.0008655 | G19: 0.0004825
A20: Dioxins & Furans (WHO-TEQ Humans / Mammals) | C20: 6-8hrs | D20: None set ng/m3 | F20: 0.0016 | G20: 0.0042
A21: Dioxins & Furans (WHO-TEQ Fish) | C21: 6-8hrs | D21: None set ng/m3 | F21: 0.0014 | G21: 0.00435
A22: Dioxins & Furans (WHO-TEQ Birds) | C22: 6-8hrs | D22: None set ng/m3 | F22: 0.00195 | G22: 0.0062
A23: Anthanthrene | C23: 6-8hrs | D23: None set µg/m3 | F23: 0.000765 | G23: 0.00065
A24: Benzo(a)anthracene | C24: 6-8hrs | D24: None set µg/m3 | F24: 0.000765 | G24: 0.0014
A25: Benzo(a)pyrene | C25: 6-8hrs | D25: None set µg/m3 | F25: 0.000765 | G25: 0.00215
A26: Benzo(b)fluoranthene | C26: 6-8hrs | D26: None set µg/m3 | F26: 0.000765 | G26: 0.0058
A27: Benzo(b)naptho(2,1-d) thiophene | C27: 6-8hrs | D27: None set µg/m3 | F27: 0.000765 | G27: 0.00065
A28: Benzo(c)phenanthrene | C28: 6-8hrs | D28: None set µg/m3 | F28: 0.000765 | G28: 0.0008
A29: Benzo(ghi)perylene | C29: 6-8hrs | D29: None set µg/m3 | F29: 0.000765 | G29: 0.0017
A30: Benzo(k)fluoranthene | C30: 6-8hrs | D30: None set µg/m3 | F30: 0.00085 | G30: 0.00255
A31: Cholanthrene | C31: 6-8hrs | D31: None set µg/m3 | F31: 0.0007655 | G31: 0.00065
A32: Chrysene | C32: 6-8hrs | D32: None set µg/m3 | F32: 0.00235 | G32: 0.0044
A33: Cyclopenta(cd)pyrene | C33: 6-8hrs | D33: None set µg/m3 | F33: 0.000765 | G33: 0.00085
A34: Dibenzo(ai)pyrene | C34: 6-8hrs | D34: None set µg/m3 | F34: 0.000765 | G34: 0.00065
A35: Dibenzo(ah)anthracene | C35: 6-8hrs | D35: None set µg/m3 | F35: 0.000765 | G35: 0.00065
A36: Fluoranthene | C36: 6-8hrs | D36: None set µg/m3 | F36: 0.00755 | G36: 0.0035
A37: Indeno(123-cd) pyrene | C37: 6-8hrs | D37: None set µg/m3 | F37: 0.000765 | G37: 0.00185
A38: Naphthalene | C38: 6-8hrs | D38: None set µg/m3 | F38: 0.80395 | G38: 0.1844
A39: Comments :
A40: Where the laboratory result was reported as a Method Detection Limit, the result has been replaced with a value equal to the MDL. Where dioxins/furans have been reported at the MDL the value has been replaced with a value equal to 0.5 times the MDL as per guidance received from the Environment Agency (Ben Freeman).

Sheet Air (CEMS)
A1: =+'Cover Page'!$B$29 -> Annual Performance Report 2020 | I1: =+'Cover Page'!$B$33 -> Severnside Energy Recovery Centre
A3: Emissions to Air (continously monitored)
P4: Notes:
A5: Summary of monitoring undertaken, standards used and compliance | P5: Template may require adjustment for any bespoke monitoring requirements of permit
P6: Report to 2 decimal places, i.e. xx.xx%
A11: Results of emissions to air that are continuously monitored (maximum and average values for each line)
A12: Substance | B12: Reference Period | C12: Emission Limit Value | D12: A1 | F12: A2 | H12: A3 | J12: A4 | L12: A5
D13: Max. | E13: Avg. | F13: Max. | G13: Avg. | H13: Max. | I13: Avg. | J13: Max. | K13: Avg. | L13: Max. | M13: Avg.
A14: Oxides of nitrogen | B14: Daily mean | C14: 200 mg/m3 | D14: =NOx!O19 -> 149 | E14: =NOx!N19 -> 135.3333333 | F14: =NOx!O34 -> 150 | G14: =NOx!N34 -> 135.4166667
B15: ½ hourly mean | C15: 400 mg/m3 | D15: =NOx!M19 -> 247 | E15: =NOx!L19 -> 135.3333333 | F15: =NOx!M34 -> 225 | G15: =NOx!L34 -> 135.4166667
A16: Particulates | B16: Daily mean | C16: 10 mg/m3 | D16: =Particulates!O19 -> 9 | E16: =Particulates!N19 -> 2.933333333 | F16: =Particulates!O34 -> 8 | G16: =Particulates!N34 -> 2.2
B17: ½ hourly mean | C17: 30 mg/m3 | D17: =Particulates!M19 -> 51 | E17: =Particulates!L19 -> 2.933333333 | F17: =Particulates!M34 -> 33.7 | G17: =Particulates!L34 -> 2.2
A18: Total Organic Carbon | B18: Daily mean | C18: 10 mg/m3 | D18: =TOC!O19 -> 3.4 | E18: =TOC!N19 -> 0.325 | F18: =TOC!O34 -> 1 | G18: =TOC!N34 -> 0.2833333333
B19: ½ hourly mean | C19: 20 mg/m3 | D19: =TOC!M19 -> 11.1 | E19: =TOC!L19 -> 0.325 | F19: =TOC!M34 -> 7.2 | G19: =TOC!L34 -> 0.2833333333
A20: Hydrogen chloride | B20: Daily mean | C20: 10 mg/m3 | D20: =HCl!O19 -> 5.1 | E20: =HCl!N19 -> 1.758333333 | F20: =HCl!O34 -> 7.6 | G20: =HCl!N34 -> 3.558333333
B21: ½ hourly mean | C21: 60 mg/m3 | D21: =HCl!M19 -> 7.1 | E21: =HCl!L19 -> 1.758333333 | F21: =HCl!M34 -> 54 | G21: =HCl!L34 -> 3.558333333
A22: Sulphur dioxide | B22: Daily mean | C22: 50 mg/m3 | D22: ='SO2'!O19 -> 36 | E22: ='SO2'!N19 -> 7.108333333 | F22: ='SO2'!O34 -> 26 | G22: ='SO2'!N34 -> 8.283333333
B23: ½ hourly mean | C23: 200 mg/m3 | D23: ='SO2'!M19 -> 64 | E23: ='SO2'!L19 -> 7.108333333 | F23: ='SO2'!M34 -> 104 | G23: ='SO2'!L34 -> 8.283333333
A24: Carbon monoxide | B24: Daily mean | C24: 50 mg/m3 | D24: ='CO 95% 10 min'!Q19 -> 15 | E24: ='CO 95% 10 min'!P19 -> 6.333333333 | F24: ='CO 95% 10 min'!Q34 -> 10 | G24: ='CO 95% 10 min'!P34 -> 4.75
B25: 95%ile 10-min avg | C25: 150 mg/m3 * | D25: ='CO 95% 10 min'!M19 -> 11.68 | E25: ='CO 95% 10 min'!N19 -> 6.333333333 | F25: ='CO 95% 10 min'!M34 -> 21.83083333 | G25: ='CO 95% 10 min'!N34 -> 4.75
A26: Ammonia | B26: Daily mean | C26: No limit set | D26: ='NH3'!O19 -> 2 | E26: ='NH3'!N19 -> 0.7333333333 | F26: ='NH3'!O34 -> 1 | G26: ='NH3'!N34 -> 0.09166666667
A27: * = delete or amend as appropriate
A28: Comments :

Sheet HCl
A1: =+'Cover Page'!$B$29 -> Annual Performance Report 2020 | E1: =+'Cover Page'!$B$33 -> Severnside Energy Recovery Centre
A3: Monitoring of Hydrogen Chloride emissions | D3: Whole Installation | G3: See Notes in Cell Q3 | J3: =+A3 -> Monitoring of Hydrogen Chloride emissions | N3: Per Combustion Line | Q3: Notes:
Q4: User to add logic to complete Whole installation, Table A5:G18. From the data in Per Combustion Line, Table J6:O79, subject to No. of lines installed
A5: mg/Nm3 | B5: 1/2 Hourly Reference Periods | E5: Daily Reference Periods
A6: =+'Cover Page'!C39 -> 2020 | B6: 1/2 hourly HCl ELV | C6: Monthly 1/2 hourly mean | D6: Highest 1/2 hourly maximum | E6: Daily HCl ELV | F6: Monthly daily mean | G6: Highest daily maximum | J6: =+A6 -> 2020 | K6: mg/Nm3 | L6: Monthly 1/2 hourly mean | M6: Monthly 1/2 hourly maximum | N6: Monthly daily mean | O6: Monthly daily maximum
A7: Jan | B7: 60 | C7: =AVERAGE(L7,L22,L37,L52,L67) -> 3.5 | D7: =AVERAGE(M7,M22,M37,M52,M67) -> 8.4 | E7: 10 | F7: =AVERAGE(N7,N22,N37,N52,N67) -> 3.5 | G7: =AVERAGE(O7,O22,O37,O52,O67) -> 5.9 | J7: A1 | K7: Jan | L7: 2.8 | M7: 7.1 | N7: 2.8 | O7: 4.8
A8: Feb | B8: 60 | C8: =AVERAGE(L8,L23,L38,L53,L68) -> 1.65 | D8: =AVERAGE(M8,M23,M38,M53,M68) -> 3.3 | E8: 10 | F8: =AVERAGE(N8,N23,N38,N53,N68) -> 1.65 | G8: =AVERAGE(O8,O23,O38,O53,O68) -> 2.15 | K8: Feb | L8: 1.3 | M8: 3 | N8: 1.3 | O8: 1.7
A9: Mar | B9: 60 | C9: =AVERAGE(L9,L24,L39,L54,L69) -> 1.45 | D9: 28.15 | E9: 10 | F9: 1.45 | G9: 2.4 | K9: Mar | L9: 0.7 | M9: 2.3 | N9: 0.7 | O9: 1.9 | Q9: Whole Installation table A5:G18:
A10: Apr | B10: 60 | C10: 1.5 | D10: 6 | E10: 10 | F10: 1.5 | G10: 3 | K10: Apr | L10: 1 | M10: 5 | N10: 1 | O10: 2 | Q10: Mean: for 1/2 hourly and daily periods calculate mean of values across all operational combustion lines for the month
A11: May | B11: 60 | C11: 2 | D11: 4.5 | E11: 10 | F11: 2 | G11: 3.5 | K11: May | L11: 1 | M11: 3 | N11: 1 | O11: 2
A12: Jun | B12: 60 | C12: 2 | D12: 7 | E12: 10 | F12: 2 | G12: 4 | K12: Jun | L12: 1 | M12: 6 | N12: 1 | O12: 3
A13: Jul | B13: 60 | C13: 2.75 | D13: 7 | E13: 10 | F13: 2.75 | G13: 5.3 | K13: Jul | L13: 1.9 | M13: 6.8 | N13: 1.9 | O13: 5.1 | Q13: Maximum: for 1/2 hourly and daily periods use the highest value across all operational combustion lines for the month
A14: Aug | B14: 60 | C14: 3.9 | D14: 8.45 | E14: 10 | F14: 3.9 | G14: 6.3 | K14: Aug | L14: 2.8 | M14: 6.9 | N14: 2.8 | O14: 5
A15: Sep | B15: 60 | C15: 3.95 | D15: 7.8 | E15: 10 | F15: 3.95 | G15: 5.9 | K15: Sep | L15: 2.8 | M15: 6.3 | N15: 2.8 | O15: 4.5
A16: Oct | B16: 60 | C16: 3.75 | D16: 7.75 | E16: 10 | F16: 3.75 | G16: 5.9 | K16: Oct | L16: 2.8 | M16: 5.4 | N16: 2.8 | O16: 4.7
A17: Nov | B17: 60 | C17: 2.8 | D17: 7 | E17: 10 | F17: 2.8 | G17: 4.3 | K17: Nov | L17: 1.5 | M17: 5.5 | N17: 1.5 | O17: 3
A18: Dec | B18: 60 | C18: 2.65 | D18: 6.55 | E18: 10 | F18: 2.65 | G18: 4.5 | K18: Dec | L18: 1.5 | M18: 4.9 | N18: 1.5 | O18: 3.6
K19: Annual | L19: =AVERAGE(L7:L18) -> 1.758333333 | M19: =MAX(M7:M18) -> 7.1 | N19: =AVERAGE(N7:N18) -> 1.758333333 | O19: =MAX(O7:O18) -> 5.1
J21: =+A6 -> 2020 | K21: mg/Nm3 | L21: Monthly 1/2 hourly mean | M21: Monthly 1/2 hourly maximum | N21: Monthly daily mean | O21: Monthly daily maximum
J22: A2 | K22: Jan | L22: 4.2 | M22: 9.7 | N22: 4.2 | O22: 7
K23: Feb | L23: 2 | M23: 3.6 | N23: 2 | O23: 2.6
K24: Mar | L24: 2.2 | M24: 54 | N24: 2.2 | O24: 2.9
K25: Apr | L25: 2 | M25: 7 | N25: 2 | O25: 4
K26: May | L26: 3 | M26: 6 | N26: 3 | O26: 5
K27: Jun | L27: 3 | M27: 8 | N27: 3 | O27: 5
K28: Jul | L28: 3.6 | M28: 7.2 | N28: 3.6 | O28: 5.5
K29: Aug | L29: 5 | M29: 10 | N29: 5 | O29: 7.6
K30: Sep | L30: 5.1 | M30: 9.3 | N30: 5.1 | O30: 7.3
K31: Oct | L31: 4.7 | M31: 10.1 | N31: 4.7 | O31: 7.1
K32: Nov | L32: 4.1 | M32: 8.5 | N32: 4.1 | O32: 5.6
K33: Dec | L33: 3.8 | M33: 8.2 | N33: 3.8 | O33: 5.4
K34: Annual | L34: =AVERAGE(L22:L33) -> 3.558333333 | M34: =MAX(M22:M33) -> 54 | N34: =AVERAGE(N22:N33) -> 3.558333333 | O34: =MAX(O22:O33) -> 7.6
J36: =+A6 -> 2020 | K36: mg/Nm3 | L36: Monthly 1/2 hourly mean | M36: Monthly 1/2 hourly maximum | N36: Monthly daily mean | O36: Monthly daily maximum
J37: A3 | K37: Jan
K38: Feb
K39: Mar
K40: Apr
K41: May
K42: Jun
K43: Jul
K44: Aug
K45: Sep
K46: Oct
K47: Nov
A48: Comments : | K48: Dec
K49: Annual | L49: =AVERAGE(L37:L48) ->  | M49: =MAX(M37:M48) -> 0 | N49: =AVERAGE(N37:N48) ->  | O49: =MAX(O37:O48) -> 0
J51: =+A6 -> 2020 | K51: mg/Nm3 | L51: Monthly 1/2 hourly mean | M51: Monthly 1/2 hourly maximum | N51: Monthly daily mean | O51: Monthly daily maximum
J52: A4 | K52: Jan
K53: Feb
K54: Mar
K55: Apr
K56: May
K57: Jun
K58: Jul
K59: Aug
K60: Sep
K61: Oct
K62: Nov
K63: Dec
K64: Annual | L64: =AVERAGE(L52:L63) ->  | M64: =MAX(M52:M63) -> 0 | N64: =AVERAGE(N52:N63) ->  | O64: =MAX(O52:O63) -> 0
J66: =+A6 -> 2020 | K66: mg/Nm3 | L66: Monthly 1/2 hourly mean | M66: Monthly 1/2 hourly maximum | N66: Monthly daily mean | O66: Monthly daily maximum
J67: A5 | K67: Jan
K68: Feb
K69: Mar
K70: Apr
K71: May
K72: Jun
K73: Jul
K74: Aug
K75: Sep
K76: Oct
K77: Nov
K78: Dec
K79: Annual | L79: =AVERAGE(L67:L78) ->  | M79: =MAX(M67:M78) -> 0 | N79: =AVERAGE(N67:N78) ->  | O79: =MAX(O67:O78) -> 0

Sheet SO2
A1: =+'Cover Page'!$B$29 -> Annual Performance Report 2020 | E1: =+'Cover Page'!$B$33 -> Severnside Energy Recovery Centre
A3: Monitoring of Sulphur dioxide emissions | D3: Whole Installation | G3: See Notes in Cell Q3 | J3: =+A3 -> Monitoring of Sulphur dioxide emissions | N3: Per Combustion Line | Q3: Notes:
Q4: User to add logic to complete Whole installation, Table A5:G18. From the data in Per Combustion Line, Table J6:O79, subject to No. of lines installed
A5: mg/Nm3 | B5: 1/2 Hourly Reference Periods | E5: Daily Reference Periods
A6: =+'Cover Page'!C39 -> 2020 | B6: 1/2 hourly SO2 ELV | C6: Monthly 1/2 hourly mean | D6: Highest 1/2 hourly maximum | E6: Daily SO2 ELV | F6: Monthly daily mean | G6: Highest daily maximum | J6: =+A6 -> 2020 | K6: mg/Nm3 | L6: Monthly 1/2 hourly mean | M6: Monthly 1/2 hourly maximum | N6: Monthly daily mean | O6: Monthly daily maximum
A7: Jan | B7: 200 | C7: =AVERAGE(L7,L22,L37,L52,L67) -> 5 | D7: =AVERAGE(M7,M22,M37,M52,M67) -> 45 | E7: 50 | F7: =AVERAGE(N7,N22,N37,N52,N67) -> 5 | G7: =AVERAGE(O7,O22,O37,O52,O67) -> 9 | J7: A1 | K7: Jan | L7: 6 | M7: 43 | N7: 6 | O7: 11
A8: Feb | B8: 200 | C8: =AVERAGE(L8,L23,L38,L53,L68) -> 14 | D8: 66 | E8: 50 | F8: =AVERAGE(N8,N23,N38,N53,N68) -> 14 | G8: 29.5 | K8: Feb | L8: 17 | M8: 49 | N8: 17 | O8: 33
A9: Mar | B9: 200 | C9: =AVERAGE(L9,L24,L39,L54,L69) -> 11.5 | D9: 84 | E9: 50 | F9: =AVERAGE(N9,N24,N39,N54,N69) -> 11.5 | G9: 31 | K9: Mar | L9: 14 | M9: 64 | N9: 14 | O9: 36 | Q9: Whole Installation table A5:G18:
A10: Apr | B10: 200 | C10: =AVERAGE(L10,L25,L40,L55,L70) -> 6.5 | D10: 47.5 | E10: 50 | F10: =AVERAGE(N10,N25,N40,N55,N70) -> 6.5 | G10: 14 | K10: Apr | L10: 6 | M10: 56 | N10: 6 | O10: 14 | Q10: Mean: for 1/2 hourly and daily periods calculate mean of values across all operational combustion lines for the month
A11: May | B11: 200 | C11: =AVERAGE(L11,L26,L41,L56,L71) -> 8 | D11: 50 | E11: 50 | F11: =AVERAGE(N11,N26,N41,N56,N71) -> 8 | G11: 15 | K11: May | L11: 7 | M11: 62 | N11: 7 | O11: 14
A12: Jun | B12: 200 | C12: =AVERAGE(L12,L27,L42,L57,L72) -> 7.5 | D12: 42 | E12: 50 | F12: =AVERAGE(N12,N27,N42,N57,N72) -> 7.5 | G12: 13 | K12: Jun | L12: 7 | M12: 42 | N12: 7 | O12: 16
A13: Jul | B13: 200 | C13: =AVERAGE(L13,L28,L43,L58,L73) -> 6 | D13: 40.5 | E13: 50 | F13: =AVERAGE(N13,N28,N43,N58,N73) -> 6 | G13: 10.5 | K13: Jul | L13: 4 | M13: 34 | N13: 4 | O13: 8 | Q13: Maximum: for 1/2 hourly and daily periods use the highest value across all operational combustion lines for the month
A14: Aug | B14: 200 | C14: =AVERAGE(L14,L29,L44,L59,L74) -> 7 | D14: 43 | E14: 50 | F14: =AVERAGE(N14,N29,N44,N59,N74) -> 7 | G14: 10 | K14: Aug | L14: 5 | M14: 48 | N14: 5 | O14: 10
A15: Sep | B15: 200 | C15: =AVERAGE(L15,L30,L45,L60,L75) -> 5.5 | D15: 45 | E15: 50 | F15: =AVERAGE(N15,N30,N45,N60,N75) -> 5.5 | G15: 11 | K15: Sep | L15: 4 | M15: 60 | N15: 4 | O15: 12
A16: Oct | B16: 200 | C16: =AVERAGE(L16,L31,L46,L61,L76) -> 5.8 | D16: 22.55 | E16: 50 | F16: =AVERAGE(N16,N31,N46,N61,N76) -> 5.8 | G16: 7.3 | K16: Oct | L16: 3.6 | M16: 11.2 | N16: 3.6 | O16: 4.8
A17: Nov | B17: 200 | C17: =AVERAGE(L17,L32,L47,L62,L77) -> 6.55 | D17: 58.35 | E17: 50 | F17: =AVERAGE(N17,N32,N47,N62,N77) -> 6.55 | G17: 11.75 | K17: Nov | L17: 4.7 | M17: 63.2 | N17: 4.7 | O17: 10.1
A18: Dec | B18: 200 | C18: =AVERAGE(L18,L33,L48,L63,L78) -> 9 | D18: 41.5 | E18: 50 | F18: =AVERAGE(N18,N33,N48,N63,N78) -> 9 | G18: 15 | K18: Dec | L18: 7 | M18: 49 | N18: 7 | O18: 17
K19: Annual | L19: =AVERAGE(L7:L18) -> 7.108333333 | M19: =MAX(M7:M18) -> 64 | N19: =AVERAGE(N7:N18) -> 7.108333333 | O19: =MAX(O7:O18) -> 36
J21: =+A6 -> 2020 | K21: mg/Nm3 | L21: Monthly 1/2 hourly mean | M21: Monthly 1/2 hourly maximum | N21: Monthly daily mean | O21: Monthly daily maximum
J22: A2 | K22: Jan | L22: 4 | M22: 47 | N22: 4 | O22: 7
K23: Feb | L23: 11 | M23: 83 | N23: 11 | O23: 26
K24: Mar | L24: 9 | M24: 104 | N24: 9 | O24: 26
K25: Apr | L25: 7 | M25: 39 | N25: 7 | O25: 14
K26: May | L26: 9 | M26: 38 | N26: 9 | O26: 16
K27: Jun | L27: 8 | M27: 42 | N27: 8 | O27: 10
K28: Jul | L28: 8 | M28: 47 | N28: 8 | O28: 13
K29: Aug | L29: 9 | M29: 38 | N29: 9 | O29: 10
K30: Sep | L30: 7 | M30: 30 | N30: 7 | O30: 10
K31: Oct | L31: 8 | M31: 33.9 | N31: 8 | O31: 9.8
K32: Nov | L32: 8.4 | M32: 53.5 | N32: 8.4 | O32: 13.4
K33: Dec | L33: 11 | M33: 34 | N33: 11 | O33: 13
K34: Annual | L34: =AVERAGE(L22:L33) -> 8.283333333 | M34: =MAX(M22:M33) -> 104 | N34: =AVERAGE(N22:N33) -> 8.283333333 | O34: =MAX(O22:O33) -> 26
J36: =+A6 -> 2020 | K36: mg/Nm3 | L36: Monthly 1/2 hourly mean | M36: Monthly 1/2 hourly maximum | N36: Monthly daily mean | O36: Monthly daily maximum
J37: A3 | K37: Jan
K38: Feb
K39: Mar
K40: Apr
K41: May
K42: Jun
K43: Jul
K44: Aug
K45: Sep
K46: Oct
K47: Nov
A48: Comments : | K48: Dec
K49: Annual | L49: =AVERAGE(L37:L48) ->  | M49: =MAX(M37:M48) -> 0 | N49: =AVERAGE(N37:N48) ->  | O49: =MAX(O37:O48) -> 0
J51: =+A6 -> 2020 | K51: mg/Nm3 | L51: Monthly 1/2 hourly mean | M51: Monthly 1/2 hourly maximum | N51: Monthly daily mean | O51: Monthly daily maximum
J52: A4 | K52: Jan
K53: Feb
K54: Mar
K55: Apr
K56: May
K57: Jun
K58: Jul
K59: Aug
K60: Sep
K61: Oct
K62: Nov
K63: Dec
K64: Annual | L64: =AVERAGE(L52:L63) ->  | M64: =MAX(M52:M63) -> 0 | N64: =AVERAGE(N52:N63) ->  | O64: =MAX(O52:O63) -> 0
J66: =+A6 -> 2020 | K66: mg/Nm3 | L66: Monthly 1/2 hourly mean | M66: Monthly 1/2 hourly maximum | N66: Monthly daily mean | O66: Monthly daily maximum
J67: A5 | K67: Jan
K68: Feb
K69: Mar
K70: Apr
K71: May
K72: Jun
K73: Jul
K74: Aug
K75: Sep
K76: Oct
K77: Nov
K78: Dec
K79: Annual | L79: =AVERAGE(L67:L78) ->  | M79: =MAX(M67:M78) -> 0 | N79: =AVERAGE(N67:N78) ->  | O79: =MAX(O67:O78) -> 0

Sheet NOx
A1: =+'Cover Page'!$B$29 -> Annual Performance Report 2020 | E1: =+'Cover Page'!$B$33 -> Severnside Energy Recovery Centre
A3: Monitoring of Oxides of Nitrogen emissions | D3: Whole Installation | G3: See Notes in Cell Q3 | J3: =+A3 -> Monitoring of Oxides of Nitrogen emissions | N3: Per Combustion Line | Q3: Notes:
Q4: User to add logic to complete Whole installation, Table A5:G18. From the data in Per Combustion Line, Table J6:O79, subject to No. of lines installed
A5: mg/Nm3 | B5: 1/2 Hourly Reference Periods | E5: Daily Reference Periods
A6: =+'Cover Page'!C39 -> 2020 | B6: 1/2 hourly NOx ELV | C6: Monthly 1/2 hourly mean | D6: Highest 1/2 hourly maximum | E6: Daily NOx ELV | F6: Monthly daily mean | G6: Highest daily maximum | J6: =+A6 -> 2020 | K6: mg/Nm3 | L6: Monthly 1/2 hourly mean | M6: Monthly 1/2 hourly maximum | N6: Monthly daily mean | O6: Monthly daily maximum
A7: Jan | B7: 400 | C7: =AVERAGE(L7,L22,L37,L52,L67) -> 135 | D7: =AVERAGE(M7,M22,M37,M52,M67) -> 176 | E7: 200 | F7: =AVERAGE(N7,N22,N37,N52,N67) -> 135 | G7: =AVERAGE(O7,O22,O37,O52,O67) -> 136.5 | J7: A1 | K7: Jan | L7: 135 | M7: 174 | N7: 135 | O7: 137
A8: Feb | B8: 400 | C8: =AVERAGE(L8,L23,L38,L53,L68) -> 135 | D8: 170.5 | E8: 200 | F8: =AVERAGE(N8,N23,N38,N53,N68) -> 135 | G8: 137 | K8: Feb | L8: 135 | M8: 177 | N8: 135 | O8: 137
A9: Mar | B9: 400 | C9: =AVERAGE(L9,L24,L39,L54,L69) -> 135.5 | D9: 182 | E9: 200 | F9: =AVERAGE(N9,N24,N39,N54,N69) -> 135.5 | G9: 136.5 | K9: Mar | L9: 135 | M9: 173 | N9: 135 | O9: 137 | Q9: Whole Installation table A5:G18:
A10: Apr | B10: 400 | C10: =AVERAGE(L10,L25,L40,L55,L70) -> 135.5 | D10: 177 | E10: 200 | F10: =AVERAGE(N10,N25,N40,N55,N70) -> 135.5 | G10: 137 | K10: Apr | L10: 135 | M10: 173 | N10: 135 | O10: 137 | Q10: Mean: for 1/2 hourly and daily periods calculate mean of values across all operational combustion lines for the month
A11: May | B11: 400 | C11: =AVERAGE(L11,L26,L41,L56,L71) -> 135.5 | D11: 173.5 | E11: 200 | F11: =AVERAGE(N11,N26,N41,N56,N71) -> 135.5 | G11: 136.5 | K11: May | L11: 135 | M11: 174 | N11: 135 | O11: 136
A12: Jun | B12: 400 | C12: =AVERAGE(L12,L27,L42,L57,L72) -> 135 | D12: 174.5 | E12: 200 | F12: =AVERAGE(N12,N27,N42,N57,N72) -> 135 | G12: 137 | K12: Jun | L12: 135 | M12: 173 | N12: 135 | O12: 137
A13: Jul | B13: 400 | C13: =AVERAGE(L13,L28,L43,L58,L73) -> 136 | D13: 195 | E13: 200 | F13: =AVERAGE(N13,N28,N43,N58,N73) -> 136 | G13: 149.5 | K13: Jul | L13: 137 | M13: 202 | N13: 137 | O13: 149 | Q13: Maximum: for 1/2 hourly and daily periods use the highest value across all operational combustion lines for the month
A14: Aug | B14: 400 | C14: =AVERAGE(L14,L29,L44,L59,L74) -> 135.5 | D14: 179 | E14: 200 | F14: =AVERAGE(N14,N29,N44,N59,N74) -> 135.5 | G14: 137.5 | K14: Aug | L14: 136 | M14: 181 | N14: 136 | O14: 138
A15: Sep | B15: 400 | C15: =AVERAGE(L15,L30,L45,L60,L75) -> 135 | D15: 168.5 | E15: 200 | F15: =AVERAGE(N15,N30,N45,N60,N75) -> 135 | G15: 136.5 | K15: Sep | L15: 135 | M15: 171 | N15: 135 | O15: 137
A16: Oct | B16: 400 | C16: =AVERAGE(L16,L31,L46,L61,L76) -> 135 | D16: 174 | E16: 200 | F16: =AVERAGE(N16,N31,N46,N61,N76) -> 135 | G16: 136.5 | K16: Oct | L16: 135 | M16: 172 | N16: 135 | O16: 136
A17: Nov | B17: 400 | C17: =AVERAGE(L17,L32,L47,L62,L77) -> 136 | D17: 235 | E17: 200 | F17: =AVERAGE(N17,N32,N47,N62,N77) -> 136 | G17: 143.5 | K17: Nov | L17: 136 | M17: 245 | N17: 136 | O17: 147
A18: Dec | B18: 400 | C18: =AVERAGE(L18,L33,L48,L63,L78) -> 135.5 | D18: 228 | E18: 200 | F18: =AVERAGE(N18,N33,N48,N63,N78) -> 135.5 | G18: 137 | K18: Dec | L18: 135 | M18: 247 | N18: 135 | O18: 138
K19: Annual | L19: =AVERAGE(L7:L18) -> 135.3333333 | M19: =MAX(M7:M18) -> 247 | N19: =AVERAGE(N7:N18) -> 135.3333333 | O19: =MAX(O7:O18) -> 149
J21: =+A6 -> 2020 | K21: mg/Nm3 | L21: Monthly 1/2 hourly mean | M21: Monthly 1/2 hourly maximum | N21: Monthly daily mean | O21: Monthly daily maximum
J22: A2 | K22: Jan | L22: 135 | M22: 178 | N22: 135 | O22: 136
K23: Feb | L23: 135 | M23: 164 | N23: 135 | O23: 137
K24: Mar | L24: 136 | M24: 191 | N24: 136 | O24: 136
K25: Apr | L25: 136 | M25: 181 | N25: 136 | O25: 137
K26: May | L26: 136 | M26: 173 | N26: 136 | O26: 137
K27: Jun | L27: 135 | M27: 176 | N27: 135 | O27: 137
K28: Jul | L28: 135 | M28: 188 | N28: 135 | O28: 150
K29: Aug | L29: 135 | M29: 177 | N29: 135 | O29: 137
K30: Sep | L30: 135 | M30: 166 | N30: 135 | O30: 136
K31: Oct | L31: 135 | M31: 176 | N31: 135 | O31: 137
K32: Nov | L32: 136 | M32: 225 | N32: 136 | O32: 140
K33: Dec | L33: 136 | M33: 209 | N33: 136 | O33: 136
K34: Annual | L34: =AVERAGE(L22:L33) -> 135.4166667 | M34: =MAX(M22:M33) -> 225 | N34: =AVERAGE(N22:N33) -> 135.4166667 | O34: =MAX(O22:O33) -> 150
J36: =+A6 -> 2020 | K36: mg/Nm3 | L36: Monthly 1/2 hourly mean | M36: Monthly 1/2 hourly maximum | N36: Monthly daily mean | O36: Monthly daily maximum
J37: A3 | K37: Jan
K38: Feb
K39: Mar
K40: Apr
K41: May
K42: Jun
K43: Jul
K44: Aug
K45: Sep
K46: Oct
K47: Nov
A48: Comments : | K48: Dec
K49: Annual | L49: =AVERAGE(L37:L48) ->  | M49: =MAX(M37:M48) -> 0 | N49: =AVERAGE(N37:N48) ->  | O49: =MAX(O37:O48) -> 0
J51: =+A6 -> 2020 | K51: mg/Nm3 | L51: Monthly 1/2 hourly mean | M51: Monthly 1/2 hourly maximum | N51: Monthly daily mean | O51: Monthly daily maximum
J52: A4 | K52: Jan
K53: Feb
K54: Mar
K55: Apr
K56: May
K57: Jun
K58: Jul
K59: Aug
K60: Sep
K61: Oct
K62: Nov
K63: Dec
K64: Annual | L64: =AVERAGE(L52:L63) ->  | M64: =MAX(M52:M63) -> 0 | N64: =AVERAGE(N52:N63) ->  | O64: =MAX(O52:O63) -> 0
J66: =+A6 -> 2020 | K66: mg/Nm3 | L66: Monthly 1/2 hourly mean | M66: Monthly 1/2 hourly maximum | N66: Monthly daily mean | O66: Monthly daily maximum
J67: A5 | K67: Jan
K68: Feb
K69: Mar
K70: Apr
K71: May
K72: Jun
K73: Jul
K74: Aug
K75: Sep
K76: Oct
K77: Nov
K78: Dec
K79: Annual | L79: =AVERAGE(L67:L78) ->  | M79: =MAX(M67:M78) -> 0 | N79: =AVERAGE(N67:N78) ->  | O79: =MAX(O67:O78) -> 0

Sheet TOC
A1: =+'Cover Page'!$B$29 -> Annual Performance Report 2020 | E1: =+'Cover Page'!$B$33 -> Severnside Energy Recovery Centre
A3: Monitoring of Total organic carbon emissions | D3: Whole Installation | G3: See Notes in Cell Q3 | J3: =+A3 -> Monitoring of Total organic carbon emissions | N3: Per Combustion Line | Q3: Notes:
Q4: User to add logic to complete Whole installation, Table A5:G18. From the data in Per Combustion Line, Table J6:O79, subject to No. of lines installed
A5: mg/Nm3 | B5: 1/2 Hourly Reference Periods | E5: Daily Reference Periods
A6: =+'Cover Page'!C39 -> 2020 | B6: 1/2 hourly TOC ELV | C6: Monthly 1/2 hourly mean | D6: Highest 1/2 hourly maximum | E6: Daily TOC ELV | F6: Monthly daily mean | G6: Highest daily maximum | J6: =+A6 -> 2020 | K6: mg/Nm3 | L6: Monthly 1/2 hourly mean | M6: Monthly 1/2 hourly maximum | N6: Monthly daily mean | O6: Monthly daily maximum
A7: Jan | B7: 20 | C7: =AVERAGE(L7,L22,L37,L52,L67) -> 0.65 | D7: =AVERAGE(M7,M22,M37,M52,M67) -> 4.9 | E7: 10 | F7: =AVERAGE(N7,N22,N37,N52,N67) -> 0.65 | G7: =AVERAGE(O7,O22,O37,O52,O67) -> 0.8 | J7: A1 | K7: Jan | L7: 0.6 | M7: 2.6 | N7: 0.6 | O7: 0.7
A8: Feb | B8: 20 | C8: =AVERAGE(L8,L23,L38,L53,L68) -> 0.6 | D8: 4.75 | E8: 10 | F8: =AVERAGE(N8,N23,N38,N53,N68) -> 0.6 | G8: 0.7 | K8: Feb | L8: 0.7 | M8: 8.1 | N8: 0.7 | O8: 0.8
A9: Mar | B9: 20 | C9: =AVERAGE(L9,L24,L39,L54,L69) -> 0.7 | D9: 7.8 | E9: 10 | F9: =AVERAGE(N9,N24,N39,N54,N69) -> 0.7 | G9: 2.05 | K9: Mar | L9: 0.8 | M9: 11.1 | N9: 0.8 | O9: 3.4 | Q9: Whole Installation table A5:G18:
A10: Apr | B10: 20 | C10: =AVERAGE(L10,L25,L40,L55,L70) -> 0 | D10: 3 | E10: 10 | F10: =AVERAGE(N10,N25,N40,N55,N70) -> 0 | G10: 1 | K10: Apr | L10: 0 | M10: 3 | N10: 0 | O10: 1 | Q10: Mean: for 1/2 hourly and daily periods calculate mean of values across all operational combustion lines for the month
A11: May | B11: 20 | C11: =AVERAGE(L11,L26,L41,L56,L71) -> 0 | D11: 1 | E11: 10 | F11: =AVERAGE(N11,N26,N41,N56,N71) -> 0 | G11: 0.5 | K11: May | L11: 0 | M11: 1 | N11: 0 | O11: 1
A12: Jun | B12: 20 | C12: =AVERAGE(L12,L27,L42,L57,L72) -> 0 | D12: 4.5 | E12: 10 | F12: =AVERAGE(N12,N27,N42,N57,N72) -> 0 | G12: 0.5 | K12: Jun | L12: 0 | M12: 2 | N12: 0 | O12: 0
A13: Jul | B13: 20 | C13: =AVERAGE(L13,L28,L43,L58,L73) -> 0.3 | D13: 0.95 | E13: 10 | F13: =AVERAGE(N13,N28,N43,N58,N73) -> 0.3 | G13: 0.4 | K13: Jul | L13: 0.3 | M13: 0.9 | N13: 0.3 | O13: 0.4 | Q13: Maximum: for 1/2 hourly and daily periods use the highest value across all operational combustion lines for the month
A14: Aug | B14: 20 | C14: =AVERAGE(L14,L29,L44,L59,L74) -> 0.25 | D14: 1.35 | E14: 10 | F14: =AVERAGE(N14,N29,N44,N59,N74) -> 0.25 | G14: 0.35 | K14: Aug | L14: 0.3 | M14: 1.4 | N14: 0.3 | O14: 0.4
A15: Sep | B15: 20 | C15: =AVERAGE(L15,L30,L45,L60,L75) -> 0.25 | D15: 0.7 | E15: 10 | F15: =AVERAGE(N15,N30,N45,N60,N75) -> 0.25 | G15: 0.35 | K15: Sep | L15: 0.3 | M15: 0.9 | N15: 0.3 | O15: 0.4
A16: Oct | B16: 20 | C16: =AVERAGE(L16,L31,L46,L61,L76) -> 0.25 | D16: 2.85 | E16: 10 | F16: =AVERAGE(N16,N31,N46,N61,N76) -> 0.25 | G16: 0.35 | K16: Oct | L16: 0.3 | M16: 1.9 | N16: 0.3 | O16: 0.4
A17: Nov | B17: 20 | C17: =AVERAGE(L17,L32,L47,L62,L77) -> 0.25 | D17: 3.05 | E17: 10 | F17: =AVERAGE(N17,N32,N47,N62,N77) -> 0.25 | G17: 0.55 | K17: Nov | L17: 0.2 | M17: 1.2 | N17: 0.2 | O17: 0.5
A18: Dec | B18: 20 | C18: =AVERAGE(L18,L33,L48,L63,L78) -> 0.4 | D18: 6.15 | E18: 10 | F18: =AVERAGE(N18,N33,N48,N63,N78) -> 0.4 | G18: 0.5 | K18: Dec | L18: 0.4 | M18: 7.5 | N18: 0.4 | O18: 0.5
K19: Annual | L19: =AVERAGE(L7:L18) -> 0.325 | M19: =MAX(M7:M18) -> 11.1 | N19: =AVERAGE(N7:N18) -> 0.325 | O19: =MAX(O7:O18) -> 3.4
J21: =+A6 -> 2020 | K21: mg/Nm3 | L21: Monthly 1/2 hourly mean | M21: Monthly 1/2 hourly maximum | N21: Monthly daily mean | O21: Monthly daily maximum
J22: A2 | K22: Jan | L22: 0.7 | M22: 7.2 | N22: 0.7 | O22: 0.9
K23: Feb | L23: 0.5 | M23: 1.4 | N23: 0.5 | O23: 0.6
K24: Mar | L24: 0.6 | M24: 4.5 | N24: 0.6 | O24: 0.7
K25: Apr | L25: 0 | M25: 3 | N25: 0 | O25: 1
K26: May | L26: 0 | M26: 1 | N26: 0 | O26: 0
K27: Jun | L27: 0 | M27: 7 | N27: 0 | O27: 1
K28: Jul | L28: 0.3 | M28: 1 | N28: 0.3 | O28: 0.4
K29: Aug | L29: 0.2 | M29: 1.3 | N29: 0.2 | O29: 0.3
K30: Sep | L30: 0.2 | M30: 0.5 | N30: 0.2 | O30: 0.3
K31: Oct | L31: 0.2 | M31: 3.8 | N31: 0.2 | O31: 0.3
K32: Nov | L32: 0.3 | M32: 4.9 | N32: 0.3 | O32: 0.6
K33: Dec | L33: 0.4 | M33: 4.8 | N33: 0.4 | O33: 0.5
K34: Annual | L34: =AVERAGE(L22:L33) -> 0.2833333333 | M34: =MAX(M22:M33) -> 7.2 | N34: =AVERAGE(N22:N33) -> 0.2833333333 | O34: =MAX(O22:O33) -> 1
J36: =+A6 -> 2020 | K36: mg/Nm3 | L36: Monthly 1/2 hourly mean | M36: Monthly 1/2 hourly maximum | N36: Monthly daily mean | O36: Monthly daily maximum
J37: A3 | K37: Jan
K38: Feb
K39: Mar
K40: Apr
K41: May
K42: Jun
K43: Jul
K44: Aug
K45: Sep
K46: Oct
K47: Nov
A48: Comments : | K48: Dec
K49: Annual | L49: =AVERAGE(L37:L48) ->  | M49: =MAX(M37:M48) -> 0 | N49: =AVERAGE(N37:N48) ->  | O49: =MAX(O37:O48) -> 0
J51: =+A6 -> 2020 | K51: mg/Nm3 | L51: Monthly 1/2 hourly mean | M51: Monthly 1/2 hourly maximum | N51: Monthly daily mean | O51: Monthly daily maximum
J52: A4 | K52: Jan
K53: Feb
K54: Mar
K55: Apr
K56: May
K57: Jun
K58: Jul
K59: Aug
K60: Sep
K61: Oct
K62: Nov
K63: Dec
K64: Annual | L64: =AVERAGE(L52:L63) ->  | M64: =MAX(M52:M63) -> 0 | N64: =AVERAGE(N52:N63) ->  | O64: =MAX(O52:O63) -> 0
J66: =+A6 -> 2020 | K66: mg/Nm3 | L66: Monthly 1/2 hourly mean | M66: Monthly 1/2 hourly maximum | N66: Monthly daily mean | O66: Monthly daily maximum
J67: A5 | K67: Jan
K68: Feb
K69: Mar
K70: Apr
K71: May
K72: Jun
K73: Jul
K74: Aug
K75: Sep
K76: Oct
K77: Nov
K78: Dec
K79: Annual | L79: =AVERAGE(L67:L78) ->  | M79: =MAX(M67:M78) -> 0 | N79: =AVERAGE(N67:N78) ->  | O79: =MAX(O67:O78) -> 0

Sheet Particulates
A1: =+'Cover Page'!$B$29 -> Annual Performance Report 2020 | E1: =+'Cover Page'!$B$33 -> Severnside Energy Recovery Centre
A3: Monitoring of Particulate matter emissions | D3: Whole Installation | G3: See Notes in Cell Q3 | J3: =+A3 -> Monitoring of Particulate matter emissions | N3: Per Combustion Line | Q3: Notes:
Q4: User to add logic to complete Whole installation, Table A5:G18. From the data in Per Combustion Line, Table J6:O79, subject to No. of lines installed
A5: mg/Nm3 | B5: 1/2 Hourly Reference Periods | E5: Daily Reference Periods
A6: =+'Cover Page'!C39 -> 2020 | B6: 1/2 hourly PM ELV | C6: Monthly 1/2 hourly mean | D6: Highest 1/2 hourly maximum | E6: Daily PM ELV | F6: Monthly daily mean | G6: Highest daily maximum | J6: =+A6 -> 2020 | K6: mg/Nm3 | L6: Monthly 1/2 hourly mean | M6: Monthly 1/2 hourly maximum | N6: Monthly daily mean | O6: Monthly daily maximum
A7: Jan | B7: 30 | C7: =AVERAGE(L7,L22,L37,L52,L67) -> 3.65 | D7: =AVERAGE(M7,M22,M37,M52,M67) -> 9.3 | E7: 10 | F7: =AVERAGE(N7,N22,N37,N52,N67) -> 3.65 | G7: =AVERAGE(O7,O22,O37,O52,O67) -> 5.1 | J7: A1 | K7: Jan | L7: 4.7 | M7: 10.9 | N7: 4.7 | O7: 6.6
A8: Feb | B8: 30 | C8: =AVERAGE(L8,L23,L38,L53,L68) -> 4.35 | D8: 9.7 | E8: 10 | F8: =AVERAGE(N8,N23,N38,N53,N68) -> 4.35 | G8: 6 | K8: Feb | L8: 4.8 | M8: 12.4 | N8: 4.8 | O8: 6.7
A9: Mar | B9: 30 | C9: =AVERAGE(L9,L24,L39,L54,L69) -> 4.15 | D9: 18.5 | E9: 10 | F9: =AVERAGE(N9,N24,N39,N54,N69) -> 4.15 | G9: 7.15 | K9: Mar | L9: 4.8 | M9: 23.9 | N9: 4.8 | O9: 8.8 | Q9: Whole Installation table A5:G18:
A10: Apr | B10: 30 | C10: =AVERAGE(L10,L25,L40,L55,L70) -> 3.5 | D10: 32 | E10: 10 | F10: =AVERAGE(N10,N25,N40,N55,N70) -> 3.5 | G10: 8.5 | K10: Apr | L10: 3 | M10: 51 | N10: 3 | O10: 9 | Q10: Mean: for 1/2 hourly and daily periods calculate mean of values across all operational combustion lines for the month
A11: May | B11: 30 | C11: =AVERAGE(L11,L26,L41,L56,L71) -> 2.5 | D11: 4 | E11: 10 | F11: =AVERAGE(N11,N26,N41,N56,N71) -> 2.5 | G11: 3 | K11: May | L11: 2 | M11: 3 | N11: 2 | O11: 2
A12: Jun | B12: 30 | C12: =AVERAGE(L12,L27,L42,L57,L72) -> 2.5 | D12: 5.5 | E12: 10 | F12: =AVERAGE(N12,N27,N42,N57,N72) -> 2.5 | G12: 3.5 | K12: Jun | L12: 2 | M12: 2 | N12: 2 | O12: 2
A13: Jul | B13: 30 | C13: =AVERAGE(L13,L28,L43,L58,L73) -> 1.8 | D13: 17.85 | E13: 10 | F13: =AVERAGE(N13,N28,N43,N58,N73) -> 1.8 | G13: 3.65 | K13: Jul | L13: 1.6 | M13: 2 | N13: 1.6 | O13: 1.9 | Q13: Maximum: for 1/2 hourly and daily periods use the highest value across all operational combustion lines for the month
A14: Aug | B14: 30 | C14: =AVERAGE(L14,L29,L44,L59,L74) -> 1.15 | D14: 1.65 | E14: 10 | F14: =AVERAGE(N14,N29,N44,N59,N74) -> 1.15 | G14: 1.3 | K14: Aug | L14: 1.6 | M14: 2.3 | N14: 1.6 | O14: 1.8
A15: Sep | B15: 30 | C15: =AVERAGE(L15,L30,L45,L60,L75) -> 1.35 | D15: 1.95 | E15: 10 | F15: =AVERAGE(N15,N30,N45,N60,N75) -> 1.35 | G15: 1.55 | K15: Sep | L15: 1.9 | M15: 2.8 | N15: 1.9 | O15: 2.2
A16: Oct | B16: 30 | C16: =AVERAGE(L16,L31,L46,L61,L76) -> 1.45 | D16: 2.05 | E16: 10 | F16: =AVERAGE(N16,N31,N46,N61,N76) -> 1.45 | G16: 1.75 | K16: Oct | L16: 2.1 | M16: 2.9 | N16: 2.1 | O16: 2.5
A17: Nov | B17: 30 | C17: =AVERAGE(L17,L32,L47,L62,L77) -> 2.3 | D17: 17.15 | E17: 10 | F17: =AVERAGE(N17,N32,N47,N62,N77) -> 2.3 | G17: 3.95 | K17: Nov | L17: 3.7 | M17: 32.1 | N17: 3.7 | O17: 6.5
A18: Dec | B18: 30 | C18: =AVERAGE(L18,L33,L48,L63,L78) -> 2.1 | D18: 8.35 | E18: 10 | F18: =AVERAGE(N18,N33,N48,N63,N78) -> 2.1 | G18: 5.3 | K18: Dec | L18: 3 | M18: 6.8 | N18: 3 | O18: 5
K19: Annual | L19: =AVERAGE(L7:L18) -> 2.933333333 | M19: =MAX(M7:M18) -> 51 | N19: =AVERAGE(N7:N18) -> 2.933333333 | O19: =MAX(O7:O18) -> 9
J21: =+A6 -> 2020 | K21: mg/Nm3 | L21: Monthly 1/2 hourly mean | M21: Monthly 1/2 hourly maximum | N21: Monthly daily mean | O21: Monthly daily maximum
J22: A2 | K22: Jan | L22: 2.6 | M22: 7.7 | N22: 2.6 | O22: 3.6
K23: Feb | L23: 3.9 | M23: 7 | N23: 3.9 | O23: 5.3
K24: Mar | L24: 3.5 | M24: 13.1 | N24: 3.5 | O24: 5.5
K25: Apr | L25: 4 | M25: 13 | N25: 4 | O25: 8
K26: May | L26: 3 | M26: 5 | N26: 3 | O26: 4
K27: Jun | L27: 3 | M27: 9 | N27: 3 | O27: 5
K28: Jul | L28: 2 | M28: 33.7 | N28: 2 | O28: 5.4
K29: Aug | L29: 0.7 | M29: 1 | N29: 0.7 | O29: 0.8
K30: Sep | L30: 0.8 | M30: 1.1 | N30: 0.8 | O30: 0.9
K31: Oct | L31: 0.8 | M31: 1.2 | N31: 0.8 | O31: 1
K32: Nov | L32: 0.9 | M32: 2.2 | N32: 0.9 | O32: 1.4
K33: Dec | L33: 1.2 | M33: 9.9 | N33: 1.2 | O33: 5.6
K34: Annual | L34: =AVERAGE(L22:L33) -> 2.2 | M34: =MAX(M22:M33) -> 33.7 | N34: =AVERAGE(N22:N33) -> 2.2 | O34: =MAX(O22:O33) -> 8
J36: =+A6 -> 2020 | K36: mg/Nm3 | L36: Monthly 1/2 hourly mean | M36: Monthly 1/2 hourly maximum | N36: Monthly daily mean | O36: Monthly daily maximum
J37: A3 | K37: Jan
K38: Feb
K39: Mar
K40: Apr
K41: May
K42: Jun
K43: Jul
K44: Aug
K45: Sep
K46: Oct
K47: Nov
A48: Comments : | K48: Dec
K49: Annual | L49: =AVERAGE(L37:L48) ->  | M49: =MAX(M37:M48) -> 0 | N49: =AVERAGE(N37:N48) ->  | O49: =MAX(O37:O48) -> 0
J51: =+A6 -> 2020 | K51: mg/Nm3 | L51: Monthly 1/2 hourly mean | M51: Monthly 1/2 hourly maximum | N51: Monthly daily mean | O51: Monthly daily maximum
J52: A4 | K52: Jan
K53: Feb
K54: Mar
K55: Apr
K56: May
K57: Jun
K58: Jul
K59: Aug
K60: Sep
K61: Oct
K62: Nov
K63: Dec
K64: Annual | L64: =AVERAGE(L52:L63) ->  | M64: =MAX(M52:M63) -> 0 | N64: =AVERAGE(N52:N63) ->  | O64: =MAX(O52:O63) -> 0
J66: =+A6 -> 2020 | K66: mg/Nm3 | L66: Monthly 1/2 hourly mean | M66: Monthly 1/2 hourly maximum | N66: Monthly daily mean | O66: Monthly daily maximum
J67: A5 | K67: Jan
K68: Feb
K69: Mar
K70: Apr
K71: May
K72: Jun
K73: Jul
K74: Aug
K75: Sep
K76: Oct
K77: Nov
K78: Dec
K79: Annual | L79: =AVERAGE(L67:L78) ->  | M79: =MAX(M67:M78) -> 0 | N79: =AVERAGE(N67:N78) ->  | O79: =MAX(O67:O78) -> 0

Sheet CO 95% 10 min
A1: =+'Cover Page'!$B$29 -> Annual Performance Report 2020 | E1: =+'Cover Page'!$B$33 -> Severnside Energy Recovery Centre
A3: Monitoring of Carbon Monoxide (10-minute avg) | E3: Whole Installation | H3: See Notes in Cell S3 | J3: =+A3 -> Monitoring of Carbon Monoxide (10-minute avg) | O3: Per Combustion Line | Q3: Notes: | S3: Notes:
S4: User to add logic to complete Whole installation, Table A5:H18. From the data in Per Combustion Line, Table K6:Q79, subject to No. of lines installed
A5: mg/Nm3 | B5: 10-minute Reference Periods | F5: Daily Reference Periods
A6: =+'Cover Page'!C39 -> 2020 | B6: 95%ile 10-min avg CO ELV | C6: 95%ile 10-min avg maximum | D6: Monthly CO 10-min avg mean | E6: 10-min avg maximum | F6: Daily CO ELV | G6: Monthly daily mean | H6: Highest daily maximum | K6: =+A6 -> 2020 | L6: mg/Nm3 | M6: 95%ile 10-min avg maximum | N6: Monthly CO 10-min avg mean | O6: 10-min avg maximum | P6: Monthly daily mean | Q6: Monthly daily maximum
A7: Jan | B7: 150 | C7: =AVERAGE(M7,M22,M37,M52,M67) -> 11.67 | D7: =AVERAGE(N7,N22,N37,N52,N67) -> 5.5 | E7: =MAX(O7,O22,O37,O52,O67) -> 711 | F7: 50 | G7: =AVERAGE(P7,P22,P37,P52,P67) -> 5.5 | H7: =AVERAGE(Q7,Q22,Q37,Q52,Q67) -> 7.5 | K7: A1 | L7: Jan | M7: 13.67 | N7: 6 | O7: 418 | P7: 6 | Q7: 9
A8: Feb | B8: =+B7 -> 150 | C8: =AVERAGE(M8,M23,M38,M53,M68) -> 11.435 | D8: 6 | E8: =MAX(O8,O23,O38,O53,O68) -> 863 | F8: =+F7 -> 50 | G8: =AVERAGE(P8,P23,P38,P53,P68) -> 6 | H8: 10.5 | L8: Feb | M8: 13.34 | N8: 7 | O8: 863 | P8: 7 | Q8: 15
A9: Mar | B9: =+B8 -> 150 | C9: =AVERAGE(M9,M24,M39,M54,M69) -> 11.295 | D9: 6.5 | E9: 262 | F9: =+F8 -> 50 | G9: =AVERAGE(P9,P24,P39,P54,P69) -> 6.5 | H9: 8.5 | L9: Mar | M9: 12.93 | N9: 8 | O9: 262 | P9: 8 | Q9: 11 | S9: Whole Installation table A5:H18:
A10: Apr | B10: 150 | C10: =AVERAGE(M10,M25,M40,M55,M70) -> 87.52 | D10: 6 | E10: 666 | F10: 50 | G10: =AVERAGE(P10,P25,P40,P55,P70) -> 6 | H10: 8.235 | L10: Apr | M10: 14.18 | N10: 6 | O10: 666 | P10: 6 | Q10: 10 | S10: Mean: for 10-min and daily periods use average of all operational combustion lines.
A11: May | B11: 150 | C11: =AVERAGE(M11,M26,M41,M56,M71) -> 9.495 | D11: 4.5 | E11: 36 | F11: 50 | G11: =AVERAGE(P11,P26,P41,P56,P71) -> 4.5 | H11: 6 | L11: May | M11: 10.43 | N11: 5 | O11: 27 | P11: 5 | Q11: 7
A12: Jun | B12: 150 | C12: =AVERAGE(M12,M27,M42,M57,M72) -> 10.535 | D12: 5 | E12: 365 | F12: 50 | G12: =AVERAGE(P12,P27,P42,P57,P72) -> 5 | H12: 6 | L12: Jun | M12: 10.5 | N12: 6 | O12: 13 | P12: 6 | Q12: 7
A13: Jul | B13: 150 | C13: =AVERAGE(M13,M28,M43,M58,M73) -> 8.99 | D13: 5 | E13: 19 | F13: 50 | G13: =AVERAGE(P13,P28,P43,P58,P73) -> 5 | H13: 5.5 | L13: Jul | M13: 9.8 | N13: 6 | O13: 14 | P13: 6 | Q13: 6 | S13: Maximum: for 10-min and daily periods use the highest of all operational combustion lines in any month.
A14: Aug | B14: 150 | C14: =AVERAGE(M14,M29,M44,M59,M74) -> 9.09 | D14: 5 | E14: 429 | F14: 50 | G14: =AVERAGE(P14,P29,P44,P59,P74) -> 5 | H14: 7 | L14: Aug | M14: 10.51 | N14: 6 | O14: 429 | P14: 6 | Q14: 9
A15: Sep | B15: 150 | C15: =AVERAGE(M15,M30,M45,M60,M75) -> 9.785 | D15: 5 | E15: 103 | F15: 50 | G15: =AVERAGE(P15,P30,P45,P60,P75) -> 5 | H15: 6 | L15: Sep | M15: 11.05 | N15: 6 | O15: 103 | P15: 6 | Q15: 7
A16: Oct | B16: 150 | C16: =AVERAGE(M16,M31,M46,M61,M76) -> 10.19 | D16: 5.5 | E16: 701 | F16: 50 | G16: =AVERAGE(P16,P31,P46,P61,P76) -> 5.5 | H16: 7 | L16: Oct | M16: 10.88 | N16: 6 | O16: 163 | P16: 6 | Q16: 8
A17: Nov | B17: 150 | C17: =AVERAGE(M17,M32,M47,M62,M77) -> 10.015 | D17: 6 | E17: 168 | F17: 50 | G17: =AVERAGE(P17,P32,P47,P62,P77) -> 6 | H17: 6.5 | L17: Nov | M17: 10.7 | N17: 7 | O17: 130 | P17: 7 | Q17: 7
A18: Dec | B18: 150 | C18: =AVERAGE(M18,M33,M48,M63,M78) -> 11.045 | D18: 6.5 | E18: 641 | F18: 50 | G18: =AVERAGE(P18,P33,P48,P63,P78) -> 6.5 | H18: 9 | L18: Dec | M18: 12.17 | N18: 7 | O18: 50 | P18: 7 | Q18: 8
L19: Annual | M19: =AVERAGE(M7:M18) -> 11.68 | N19: =AVERAGE(N7:N18) -> 6.333333333 | O19: =MAX(O7:O18) -> 863 | P19: =AVERAGE(P7:P18) -> 6.333333333 | Q19: =MAX(Q7:Q18) -> 15
K21: =+A6 -> 2020 | L21: mg/Nm3 | M21: 95%ile 10-min avg maximum | N21: Monthly CO 10-min avg mean | O21: 10-min avg maximum | P21: Monthly daily mean | Q21: Monthly daily maximum
K22: A2 | L22: Jan | M22: 9.67 | N22: 5 | O22: 711 | P22: 5 | Q22: 6
L23: Feb | M23: 9.53 | N23: 5 | O23: 80 | P23: 5 | Q23: 6
L24: Mar | M24: 9.66 | N24: 5 | O24: 25 | P24: 5 | Q24: 6
L25: Apr | M25: 160.86 | N25: 6 | O25: 431 | P25: 6 | Q25: 6.47
L26: May | M26: 8.56 | N26: 4 | O26: 36 | P26: 4 | Q26: 5
L27: Jun | M27: 10.57 | N27: 4 | O27: 365 | P27: 4 | Q27: 5
L28: Jul | M28: 8.18 | N28: 4 | O28: 19 | P28: 4 | Q28: 5
L29: Aug | M29: 7.67 | N29: 4 | O29: 10 | P29: 4 | Q29: 5
L30: Sep | M30: 8.52 | N30: 4 | O30: 52 | P30: 4 | Q30: 5
L31: Oct | M31: 9.5 | N31: 5 | O31: 701 | P31: 5 | Q31: 6
L32: Nov | M32: 9.33 | N32: 5 | O32: 168 | P32: 5 | Q32: 6
L33: Dec | M33: 9.92 | N33: 6 | O33: 641 | P33: 6 | Q33: 10
L34: Annual | M34: =AVERAGE(M22:M33) -> 21.83083333 | N34: =AVERAGE(N22:N33) -> 4.75 | O34: =MAX(O22:O33) -> 711 | P34: =AVERAGE(P22:P33) -> 4.75 | Q34: =MAX(Q22:Q33) -> 10
K36: =+A6 -> 2020 | L36: mg/Nm3 | M36: 95%ile 10-min avg maximum | N36: Monthly CO 10-min avg mean | O36: 10-min avg maximum | P36: Monthly daily mean | Q36: Monthly daily maximum
K37: A3 | L37: Jan
L38: Feb
L39: Mar
L40: Apr
L41: May
L42: Jun
L43: Jul
L44: Aug
L45: Sep
L46: Oct
L47: Nov
A48: Comments : | L48: Dec
A49: Environment Agency explanatory note: The 10-minute average ELV is based on the “95th percentile”. In this case this means that 95% of the 10 minute averages in the relevant 24-hour period (i.e. 137) must be below 150 mg/Nm3, and 5% (i.e. 7) are allowed to be any value above 150 mg/Nm3. Whilst we expect operators to minimise CO emissions at all times, it is perfectly acceptable for the value of the maximum 10-minute average to be above 150 mg/Nm3, provided the 95th percentile ELV has been met for that period. | L49: Annual | M49: =AVERAGE(M37:M48) ->  | O49: =MAX(O37:O48) -> 0 | P49: =AVERAGE(P37:P48) ->  | Q49: =MAX(Q37:Q48) -> 0
K51: =+A6 -> 2020 | L51: mg/Nm3 | M51: 95%ile 10-min avg maximum | N51: Monthly CO 10-min avg mean | O51: 10-min avg maximum | P51: Monthly daily mean | Q51: Monthly daily maximum
K52: A4 | L52: Jan
L53: Feb
L54: Mar
L55: Apr
L56: May
L57: Jun
L58: Jul
L59: Aug
L60: Sep
L61: Oct
L62: Nov
L63: Dec
L64: Annual | M64: =AVERAGE(M52:M63) ->  | O64: =MAX(O52:O63) -> 0 | P64: =AVERAGE(P52:P63) ->  | Q64: =MAX(Q52:Q63) -> 0
K66: =+A6 -> 2020 | L66: mg/Nm3 | M66: 95%ile 10-min avg maximum | N66: Monthly CO 10-min avg mean | O66: 10-min avg maximum | P66: Monthly daily mean | Q66: Monthly daily maximum
K67: A5 | L67: Jan
L68: Feb
L69: Mar
L70: Apr
L71: May
L72: Jun
L73: Jul
L74: Aug
L75: Sep
L76: Oct
L77: Nov
L78: Dec
L79: Annual | M79: =AVERAGE(M67:M78) ->  | O79: =MAX(O67:O78) -> 0 | P79: =AVERAGE(P67:P78) ->  | Q79: =MAX(Q67:Q78) -> 0

Sheet NH3
A1: =+'Cover Page'!$B$29 -> Annual Performance Report 2020 | E1: =+'Cover Page'!$B$33 -> Severnside Energy Recovery Centre
A3: Monitoring of Ammnonia emissions | D3: Whole Installation | G3: See Notes in Cell Q3 | J3: =+A3 -> Monitoring of Ammnonia emissions | N3: Per Combustion Line | Q3: Notes:
Q4: User to add logic to complete Whole installation, Table A5:G18. From the data in Per Combustion Line, Table J6:O79, subject to No. of lines installed
A5: mg/Nm3 | B5: 1/2 Hourly Reference Periods | E5: Daily Reference Periods
A6: =+'Cover Page'!C39 -> 2020 | B6: 1/2 hourly NH3 ELV | C6: Monthly 1/2 hourly mean | D6: Highest 1/2 hourly maximum | E6: Daily NH3 ELV | F6: Monthly daily mean | G6: Highest daily maximum | J6: =+A6 -> 2020 | K6: mg/Nm3 | L6: Monthly 1/2 hourly mean | M6: Monthly 1/2 hourly maximum | N6: Monthly daily mean | O6: Monthly daily maximum
A7: Jan | B7: 0 | C7: =AVERAGE(L7,L22,L37,L52,L67) -> 0.35 | D7: =AVERAGE(M7,M22,M37,M52,M67) -> 2.5 | E7: 10 | F7: =AVERAGE(N7,N22,N37,N52,N67) -> 0.35 | G7: =AVERAGE(O7,O22,O37,O52,O67) -> 0.75 | J7: A1 | K7: Jan | L7: 0.6 | M7: 2.3 | N7: 0.6 | O7: 1.3
A8: Feb | B8: =+B7 -> 0 | C8: =AVERAGE(L8,L23,L38,L53,L68) -> 0.35 | D8: 2.45 | E8: =+E7 -> 10 | F8: =AVERAGE(N8,N23,N38,N53,N68) -> 0.35 | G8: 0.6 | K8: Feb | L8: 0.5 | M8: 3.2 | N8: 0.5 | O8: 0.8
A9: Mar | B9: =+B8 -> 0 | C9: =AVERAGE(L9,L24,L39,L54,L69) -> 0.45 | D9: 9.35 | E9: =+E8 -> 10 | F9: =AVERAGE(N9,N24,N39,N54,N69) -> 0.45 | G9: 1.05 | K9: Mar | L9: 0.7 | M9: 7.3 | N9: 0.7 | O9: 1.7 | Q9: Whole Installation table A5:G18:
A10: Apr | B10: 0 | C10: =AVERAGE(L10,L25,L40,L55,L70) -> 0.5 | D10: 2.5 | E10: 10 | F10: =AVERAGE(N10,N25,N40,N55,N70) -> 0.5 | G10: 1 | K10: Apr | L10: 1 | M10: 4 | N10: 1 | O10: 1 | Q10: Mean: for 1/2 hourly and daily periods calculate mean of values across all operational combustion lines for the month
A11: May | B11: 0 | C11: =AVERAGE(L11,L26,L41,L56,L71) -> 0.5 | D11: 5.5 | E11: 10 | F11: =AVERAGE(N11,N26,N41,N56,N71) -> 0.5 | G11: 0.5 | K11: May | L11: 1 | M11: 10 | N11: 1 | O11: 1
A12: Jun | B12: 0 | C12: =AVERAGE(L12,L27,L42,L57,L72) -> 0.5 | D12: 6 | E12: 10 | F12: =AVERAGE(N12,N27,N42,N57,N72) -> 0.5 | G12: 0.5 | K12: Jun | L12: 1 | M12: 5 | N12: 1 | O12: 1
A13: Jul | B13: 0 | C13: =AVERAGE(L13,L28,L43,L58,L73) -> 0.35 | D13: 10.75 | E13: 10 | F13: =AVERAGE(N13,N28,N43,N58,N73) -> 0.35 | G13: 0.65 | K13: Jul | L13: 0.6 | M13: 16.5 | N13: 0.6 | O13: 0.9 | Q13: Maximum: for 1/2 hourly and daily periods use the highest value across all operational combustion lines for the month
A14: Aug | B14: 0 | C14: =AVERAGE(L14,L29,L44,L59,L74) -> 0.3 | D14: 1.5 | E14: 10 | F14: =AVERAGE(N14,N29,N44,N59,N74) -> 0.3 | G14: 0.6 | K14: Aug | L14: 0.5 | M14: 2.1 | N14: 0.5 | O14: 0.7
A15: Sep | B15: 0 | C15: =AVERAGE(L15,L30,L45,L60,L75) -> 0.35 | D15: 1.75 | E15: 10 | F15: =AVERAGE(N15,N30,N45,N60,N75) -> 0.35 | G15: 0.9 | K15: Sep | L15: 0.6 | M15: 2.7 | N15: 0.6 | O15: 1.4
A16: Oct | B16: 0 | C16: =AVERAGE(L16,L31,L46,L61,L76) -> 0.4 | D16: 2.4 | E16: 10 | F16: =AVERAGE(N16,N31,N46,N61,N76) -> 0.4 | G16: 0.8 | K16: Oct | L16: 0.7 | M16: 2.8 | N16: 0.7 | O16: 1.2
A17: Nov | B17: 0 | C17: =AVERAGE(L17,L32,L47,L62,L77) -> 0.45 | D17: 17.05 | E17: 10 | F17: =AVERAGE(N17,N32,N47,N62,N77) -> 0.45 | G17: 1.05 | K17: Nov | L17: 0.8 | M17: 28.1 | N17: 0.8 | O17: 1.4
A18: Dec | B18: 0 | C18: =AVERAGE(L18,L33,L48,L63,L78) -> 0.45 | D18: =AVERAGE(M18,M33,M48,M63,M78) -> 4.6 | E18: 10 | F18: =AVERAGE(N18,N33,N48,N63,N78) -> 0.45 | G18: 1.1 | K18: Dec | L18: 0.8 | M18: 6.9 | N18: 0.8 | O18: 2
K19: Annual | L19: =AVERAGE(L7:L18) -> 0.7333333333 | M19: =MAX(M7:M18) -> 28.1 | N19: =AVERAGE(N7:N18) -> 0.7333333333 | O19: =MAX(O7:O18) -> 2
J21: =+A6 -> 2020 | K21: mg/Nm3 | L21: Monthly 1/2 hourly mean | M21: Monthly 1/2 hourly maximum | N21: Monthly daily mean | O21: Monthly daily maximum
J22: A2 | K22: Jan | L22: 0.1 | M22: 2.7 | N22: 0.1 | O22: 0.2
K23: Feb | L23: 0.2 | M23: 1.7 | N23: 0.2 | O23: 0.4
K24: Mar | L24: 0.2 | M24: 11.4 | N24: 0.2 | O24: 0.4
K25: Apr | L25: 0 | M25: 1 | N25: 0 | O25: 1
K26: May | L26: 0 | M26: 1 | N26: 0 | O26: 0
K27: Jun | L27: 0 | M27: 7 | N27: 0 | O27: 0
K28: Jul | L28: 0.1 | M28: 5 | N28: 0.1 | O28: 0.4
K29: Aug | L29: 0.1 | M29: 0.9 | N29: 0.1 | O29: 0.5
K30: Sep | L30: 0.1 | M30: 0.8 | N30: 0.1 | O30: 0.4
K31: Oct | L31: 0.1 | M31: 2 | N31: 0.1 | O31: 0.4
K32: Nov | L32: 0.1 | M32: 6 | N32: 0.1 | O32: 0.7
K33: Dec | L33: 0.1 | M33: 2.3 | N33: 0.1 | O33: 0.2
K34: Annual | L34: =AVERAGE(L22:L33) -> 0.09166666667 | M34: =MAX(M22:M33) -> 11.4 | N34: =AVERAGE(N22:N33) -> 0.09166666667 | O34: =MAX(O22:O33) -> 1
J36: =+A6 -> 2020 | K36: mg/Nm3 | L36: Monthly 1/2 hourly mean | M36: Monthly 1/2 hourly maximum | N36: Monthly daily mean | O36: Monthly daily maximum
J37: A3 | K37: Jan
K38: Feb
K39: Mar
K40: Apr
K41: May
K42: Jun
K43: Jul
K44: Aug
K45: Sep
K46: Oct
K47: Nov
A48: Comments : | K48: Dec
A49: An indicated ELV value of zero in the table above means that no ammonia limit is set in the permit. | K49: Annual | L49: =AVERAGE(L37:L48) ->  | M49: =MAX(M37:M48) -> 0 | N49: =AVERAGE(N37:N48) ->  | O49: =MAX(O37:O48) -> 0
J51: =+A6 -> 2020 | K51: mg/Nm3 | L51: Monthly 1/2 hourly mean | M51: Monthly 1/2 hourly maximum | N51: Monthly daily mean | O51: Monthly daily maximum
J52: A4 | K52: Jan
K53: Feb
K54: Mar
K55: Apr
K56: May
K57: Jun
K58: Jul
K59: Aug
K60: Sep
K61: Oct
K62: Nov
K63: Dec
K64: Annual | L64: =AVERAGE(L52:L63) ->  | M64: =MAX(M52:M63) -> 0 | N64: =AVERAGE(N52:N63) ->  | O64: =MAX(O52:O63) -> 0
J66: =+A6 -> 2020 | K66: mg/Nm3 | L66: Monthly 1/2 hourly mean | M66: Monthly 1/2 hourly maximum | N66: Monthly daily mean | O66: Monthly daily maximum
J67: A5 | K67: Jan
K68: Feb
K69: Mar
K70: Apr
K71: May
K72: Jun
K73: Jul
K74: Aug
K75: Sep
K76: Oct
K77: Nov
K78: Dec
K79: Annual | L79: =AVERAGE(L67:L78) ->  | M79: =MAX(M67:M78) -> 0 | N79: =AVERAGE(N67:N78) ->  | O79: =MAX(O67:O78) -> 0
